Workbook

Sheet Лист1с формулами (hidden)
A3: Перечень многоквартирных домов
A4: № п/п | B4: Адрес многоквартирного дома | C4: Год | E4: Материал стен | F4: Количество этажей | G4: Количество подъездов | H4: Общая площадь многоквартирного дома, всего | I4: Площадь помещений многоквартирного дома | K4: Количество жителей, зарегистрированных в многоквартирном доме | L4: Стоимость капитального ремонта (за счет обязательных взносов собственников) | M4: Плановая дата завершения работ | N4: Плановая дата завершения работ
C5: ввода в эксплуатацию | D5: завершения последнего капитального ремонта | I5: всего | J5: в том числе жилых помещений, находящихся в собственности граждан
H7: кв. метров | I7: кв. метров | J7: кв. метров | K7: человек | L7: рублей
A8: Верхнеуфалейский городской округ
A9: 1 | B9: Город Верхний Уфалей, Ленина, 166 | C9: 1961 | E9: каменные, кирпичные | F9: 4 | G9: 3 | H9: =I9+142.6 -> 2231.5 | I9: 2088.9 | J9: 1312.2 | K9: 57 | L9: 2246534 | M9: ТС-2015; крыша, фундамент-2016
A10: 2 | B10: Город Верхний Уфалей, Победы, 49 | C10: 1958 | E10: блочные | F10: 2 | G10: 1 | H10: 869.8 | I10: 608.1 | J10: 219 | K10: 42 | L10: 2648707 | M10: ЭЭ, ХВС, крыша, фундамент, фасад-2015; ТС-2016
A11: Итого по Верхнеуфалейскому городскому округу | H11: =H9+H10 -> 3101.3 | I11: 2697 | J11: 1531.2 | K11: 99 | L11: =L9+L10 -> 4895241
A12: Златоустовский городской округ
A13: 3 | B13: Город Златоуст, Дворцовая, 16 | C13: 1957 | E13: каменные, кирпичные | F13: 5 | G13: 4 | H13: 4092.8 | I13: 3712.3 | J13: 3468.5 | K13: 139 | L13: 4934122 | M13: 2015
A14: 4 | B14: Город Златоуст, Дворцовая, 4 | C14: 1953 | E14: каменные, кирпичные | F14: 3 | G14: 2 | H14: 1274.2 | I14: 1146.78 | J14: 488.5 | K14: 12 | L14: 895900 | M14: 2015
A15: 5 | B15: Город Златоуст, имени Братьев Пудовкиных, 7 | C15: 1954 | E15: каменные, кирпичные | F15: 4 | G15: 1 | H15: 1971.9 | I15: 1774.71 | J15: 1331.03 | K15: 85 | L15: 252743 | M15: 2016
A16: 6 | B16: Город Златоуст, имени Карла Маркса, 12 | C16: 1954 | E16: каменные, кирпичные | F16: 4 | G16: 1 | H16: 701.5 | I16: 666.1 | J16: 499.58 | K16: 38 | L16: 192192 | M16: 2016
A17: 7 | B17: Город Златоуст, имени Карла Маркса, 13 | C17: 1953 | E17: каменные, кирпичные | F17: 5 | G17: 3 | H17: 2940.9 | I17: 2697.4 | J17: 2023.05 | K17: 96 | L17: 1369607 | M17: 2016
A18: 8 | B18: Город Златоуст, имени Карла Маркса, 19 | C18: 1951 | E18: каменные, кирпичные | F18: 3 | G18: 2 | H18: 1257.1 | I18: 1131.39 | J18: 848.54 | K18: 57 | L18: 371012 | M18: 2016
A19: 9 | B19: Город Златоуст, имени Карла Маркса, 23 | C19: 1950 | E19: каменные, кирпичные | F19: 3 | G19: 2 | H19: 1501.14 | I19: 1351.03 | J19: 1013.27 | K19: 42 | L19: 1228813 | M19: 2016
A20: 10 | B20: Город Златоуст, имени Карла Маркса, 43 | C20: 1947 | E20: каменные, кирпичные | F20: 3 | G20: 4 | H20: 3302.8 | I20: 3043.8 | J20: 2282.85 | K20: 102 | L20: 3124355 | M20: 2016
A21: 11 | B21: Город Златоуст, имени Карла Маркса, 49 | C21: 1957 | E21: каменные, кирпичные | F21: 4 | G21: 3 | H21: 3924.9 | I21: 3672.1 | J21: 2754.08 | K21: 149 | L21: 1785743 | M21: 2016
A22: 12 | B22: Город Златоуст, имени Карла Маркса, 8 | C22: 1954 | E22: каменные, кирпичные | F22: 4 | G22: 4 | H22: 3081.1 | I22: 2772.99 | J22: 2344.5 | K22: 110 | L22: 1325870 | M22: 2016
A23: 13 | B23: Город Златоуст, имени Н.П. Полетаева, 119 | C23: 1958 | E23: каменные, кирпичные | F23: 2 | G23: 1 | H23: 398.3 | I23: 358.47 | J23: 268.85 | K23: 14 | L23: 135428 | M23: 2016
A24: 14 | B24: Город Златоуст, имени П.А. Румянцева, 10 | C24: 1959 | E24: каменные, кирпичные | F24: 4 | G24: 3 | H24: 2402.2 | I24: 2221.4 | J24: 1666.05 | K24: 77 | L24: 1431578 | M24: 2016
A25: 15 | B25: Город Златоуст, имени П.П. Аносова, 251 | C25: 1958 | E25: каменные, кирпичные | F25: 5 | G25: 3 | H25: 3625.6 | I25: 2328.2 | J25: 1746.15 | K25: 81 | L25: 1970652 | M25: 2016
A26: 16 | B26: Город Златоуст, Машиностроителей, 29 | C26: 1960 | E26: каменные, кирпичные | F26: 5 | G26: 2 | H26: 1265 | I26: 1138.5 | J26: 853.88 | K26: 55 | L26: 367955 | M26: 2016
A27: 17 | B27: Город Златоуст, Машиностроителей, 37 | C27: 1961 | E27: каменные, кирпичные | F27: 4 | G27: 3 | H27: 2333 | I27: 2099.7 | J27: 1574.78 | K27: 66 | L27: 374572 | M27: 2016
A28: 18 | B28: Город Златоуст, Металлургов, 5 | C28: 1958 | E28: каменные, кирпичные | F28: 5 | G28: 4 | H28: 3247.2 | I28: 2927.7 | J28: 2927.7 | K28: 114 | L28: 1976124 | M28: 2016
A29: 19 | B29: Город Златоуст, Металлургов, 7 | C29: 1958 | E29: каменные, кирпичные | F29: 5 | G29: 4 | H29: 4990.2 | I29: 4570.6 | J29: 3427.95 | K29: 118 | L29: 2180678 | M29: 2016
A30: 20 | B30: Город Златоуст, проспект Мира, 12 | C30: 1952 | E30: каменные, кирпичные | F30: 4 | G30: 2 | H30: 2072.5 | I30: 1870.7 | J30: 1413.3 | K30: 36 | L30: 1292700 | M30: 2015
A31: 21 | B31: Город Златоуст, проспект Мира, 2 | C31: 1954 | E31: каменные, кирпичные | F31: 4 | G31: 3 | H31: 2765.3 | I31: 2490.1 | J31: 1967 | K31: 85 | L31: 4419276 | M31: ГВС, крыша, фасад-2015, ХВС -2016
A32: 22 | B32: Город Златоуст, имени М.А. Аникеева, 5 | C32: 1956 | E32: каменные, кирпичные | F32: 2 | G32: 3 | H32: 3512.9 | I32: 3161.6 | J32: 2371.2 | K32: 101 | L32: 1318954 | M32: 2016
A33: 23 | B33: Город Златоуст, имени М.И. Калинина, 1 | C33: 1928 | E33: каменные, кирпичные | F33: 3 | G33: 2 | H33: 1893.3 | I33: 1330.3 | J33: 1299.4 | K33: 57 | L33: 1032252 | M33: 2016
A34: 24 | B34: Город Златоуст,шоссе Кусинское, 1 | C34: 1948 | E34: каменные, кирпичные | F34: 2 | G34: 3 | H34: 406.7 | I34: 366.03 | J34: 299.52 | K34: 21 | L34: 174379 | M34: 2016
A35: 25 | B35: Город Златоуст, имени П.П. Аносова, 178 | C35: 1958 | E35: каменные, кирпичные | F35: 5 | G35: 4 | H35: 4901.6 | I35: 4370.1 | J35: 3368.6 | K35: 109 | L35: 3276726 | M35: 2016
A36: 26 | B36: Город Златоуст, Горькова, 5 | C36: 1950 | E36: каменные, кирпичные | F36: 4 | G36: 3 | H36: 2709 | I36: 2438.1 | J36: 1974.9 | K36: 79 | L36: 1021359 | M36: 2016
A37: 27 | B37: Город Златоуст, Тургенева, 4 | C37: 1955 | E37: каменные, кирпичные | F37: 3 | G37: 3 | H37: 1430.9 | I37: 1287.81 | J37: 1219.5 | K37: 48 | L37: 571295 | M37: 2016
A38: 28 | B38: Город Златоуст, Макаренко, 1 | C38: 1955 | E38: Каменные, кирпичные | F38: 4 | G38: 3 | H38: 2620.9 | I38: 2358.81 | J38: 2333.5 | K38: 70 | L38: 1005746 | M38: 2016
A39: 29 | B39: Город Златоуст, Макаренко, 6 | C39: 1956 | E39: Каменные, кирпичные | F39: 3 | G39: 3 | H39: 1465 | I39: 1341.6 | J39: 598.1 | K39: 56 | L39: 538984 | M39: 2016
A40: 30 | B40: Город Златоуст, 50-летия Октября, 11 | C40: 1957 | E40: каменные, кирпичные | F40: 3 | G40: 3 | H40: 2144.3 | I40: 1929.87 | J40: 1739.8 | K40: 68 | L40: 682610 | M40: 2016
A41: Итого по Златоустовскому городскому округу | H41: =SUM(H13:H40) -> 68232.24 | I41: 60558.19 | J41: 48104.08 | K41: 2085 | L41: =SUM(L13:L40) -> 39251625
A42: Карабашский городской округ
A43: 31 | B43: Город Карабаш, Ленина, 36 | C43: 1957 | E43: кирпичные | F43: 2 | G43: 2 | H43: 667 | I43: 648 | J43: 405 | K43: 17 | L43: 1014311 | M43: 2016
A44: 32 | B44: Город Карабаш, Ленина, 38 | C44: 1957 | E44: кирпичные | F44: 2 | G44: 2 | H44: 642 | I44: 403 | J44: 403 | K44: 24 | L44: 951700 | M44: 2016
A45: Итого по Карабашскому городскому округу | H45: =H44+H43 -> 1309 | I45: 1051 | J45: 808 | K45: 41 | L45: =L44+L43 -> 1966011
A46: Копейский городской округ
A47: 33 | B47: Поселок Советов, 3 | C47: 1950 | E47: блочные | F47: 2 | G47: 3 | H47: 984.9 | I47: 693.1 | J47: 693.1 | K47: 48 | L47: 1143879 | M47: 2016
A48: 34 | B48: Поселок Советов, 5 | C48: 1949 | E48: блочные | F48: 2 | G48: 3 | H48: 961.8 | I48: 892.4 | J48: 605.82 | K48: 52 | L48: 2897455 | M48: 2016
A49: 35 | B49: Город Копейск, переулок Больничный, 1 | C49: 1937 | E49: кирпичные | F49: 2 | G49: 2 | H49: 598.5 | I49: 521.3 | J49: 364.5 | K49: 21 | L49: 657031 | M49: 2016
A50: 36 | B50: Город Копейск, переулок Больничный, 3 | C50: 1937 | E50: кирпичные | F50: 2 | G50: 2 | H50: 589 | I50: 352.5 | J50: 352.5 | K50: 19 | L50: 768141 | M50: 2016
A51: 37 | B51: Город Копейск, переулок Больничный, 5 | C51: 1937 | E51: кирпичные | F51: 2 | G51: 2 | H51: 596.4 | I51: 518 | J51: 362.9 | K51: 19 | L51: 738735 | M51: 2016
A52: 38 | B52: Город Копейск, Бажова, 21 | C52: 1951 | E52: блочные | F52: 3 | G52: 3 | H52: 2088.6 | I52: 1425 | J52: 859.4 | K52: 58 | L52: 1523108 | M52: 2016
A53: 39 | B53: Город Копейск, Бажова, 5 | C53: 1955 | E53: блочные | F53: 2 | G53: 3 | H53: 1880.5 | I53: 1439.4 | J53: 944.7 | K53: 52 | L53: 1470045 | M53: 2016
A54: 40 | B54: Город Копейск, Гастелло, 6 | C54: 1953 | E54: блочные | F54: 2 | G54: 2 | H54: 426.1 | I54: 382.1 | J54: 267.6 | K54: 25 | L54: 1617486 | M54: 2016
A55: 41 | B55: Город Копейск, Грибоедова, 20 | C55: 1940 | E55: кирпичные | F55: 2 | G55: 2 | H55: 697.1 | I55: 612.5 | J55: 348.8 | K55: 29 | L55: 1446193 | M55: 2016
A56: 42 | B56: Город Копейск, Коммунистическая, 17 | C56: 1949 | E56: блочные | F56: 2 | G56: 4 | H56: 1037.6 | I56: 517.6 | J56: 517.6 | K56: 41 | L56: 1740831 | M56: 2016
A57: 43 | B57: Город Копейск, Коммунистическая, 19 | C57: 1949 | E57: кирпичные | F57: 2 | G57: 2 | H57: 806 | I57: 750.6 | J57: 495.1 | K57: 39 | L57: 936031 | M57: 2016
A58: 44 | B58: Город Копейск, Чкалова, 32 | C58: 1955 | E58: блочные | F58: 2 | G58: 1 | H58: 575.7 | I58: 534.8 | J58: 341.2 | K58: 23 | L58: 1035252 | M58: 2016
A59: 45 | B59: Город Копейск, Электровозная, 7 | C59: 1956 | E59: кирпичные | F59: 2 | G59: 3 | H59: 726.5 | I59: 269.7 | J59: 269.7 | K59: 34 | L59: 2217504 | M59: 2016
A60: 46 | B60: Город Копейск, Васенко, 11 | C60: 1937 | E60: кирпичные | F60: 2 | G60: 2 | H60: 605.7 | I60: 395.3 | J60: 366.7 | K60: 22 | L60: 1389485 | M60: 2016
A61: 47 | B61: Город Копейск, Васенко, 9 | C61: 1938 | E61: кирпичные | F61: 2 | G61: 2 | H61: 562.1 | I61: 484.8 | J61: 342.9 | K61: 22 | L61: 1445745 | M61: 2016
A62: 48 | B62: Город Копейск, Электровозная, 7А | C62: 1955 | E62: блочные | F62: 2 | G62: 1 | H62: 518 | I62: 482.5 | J62: 306.3 | K62: 10 | L62: 481003 | M62: 2016
A63: 49 | B63: Город Копейск, Медиков, 7 | C63: 1951 | E63: блочные | F63: 2 | G63: 1 | H63: 392.6 | I63: 236 | J63: 236 | K63: 18 | L63: 437247 | M63: 2016
A64: Итого по Копейскому городскому округу | H64: =SUM(H47:H63) -> 14047.1 | I64: 10507.6 | J64: 7674.82 | K64: 532 | L64: =SUM(L47:L63) -> 21945171
A65: Кыштымский городской округ
A66: 50 | B66: Город Кыштым, Дёмина, 12 | C66: 1968 | E66: панельные | F66: 5 | G66: 8 | H66: 7462.5 | I66: 5733.76 | J66: 5733.76 | K66: 221 | L66: 1679953 | M66: 2016
A67: 51 | B67: Город Кыштым, Дёмина, 14 | C67: 1971 | E67: панельные | F67: 5 | G67: 8 | H67: 7619.5 | I67: 5792 | J67: 5685.2 | K67: 213 | L67: 1685598 | M67: 2016
A68: 52 | B68: Город Кыштым, Дёмина, 8 | C68: 1966 | E68: блочные | F68: 5 | G68: 4 | H68: 4184.9 | I68: 3440.73 | J68: 3248.63 | K68: 141 | L68: 1158054 | M68: 2016
A69: 53 | B69: Город Кыштым, Карла Либкнехта, 115 | C69: 1971 | E69: блочные | F69: 5 | G69: 8 | H69: 8084.9 | I69: 7543.58 | J69: 6037.78 | K69: 216 | L69: 2013487 | M69: 2016
A70: Итого по Кыштымскому городскому округу | H70: =SUM(H66:H69) -> 27351.8 | I70: 22510.07 | J70: 20705.37 | K70: 791 | L70: 6537092
A71: Магнитогорский городской округ
A72: 54 | B72: Город Магнитогорск, Бахметьева, 17 | C72: 1957 | E72: блочные | F72: 2 | G72: 2 | H72: 1148.9 | I72: 634.2 | J72: 548.3 | K72: 31 | L72: 2490205 | M72: 2016
A73: 55 | B73: Город Магнитогорск, Бахметьева, 21 | C73: 1954 | E73: блочные | F73: 2 | G73: 2 | H73: 470.8 | I73: 419.4 | J73: 419.4 | K73: 30 | L73: 1936162 | M73: 2016
A74: 56 | B74: Город Магнитогорск, Володарского, 26 | C74: 1957 | E74: блочные | F74: 3 | G74: 2 | H74: 1320.6 | I74: 1169 | J74: 997.3 | K74: 54 | L74: 2668268 | M74: 2016
A75: 57 | B75: Город Магнитогорск, Достоевского, 32А | C75: 1954 | E75: смешанные | F75: 2 | G75: 3 | H75: 892.3 | I75: 765.7 | J75: 598.8 | K75: 51 | L75: 276360 | M75: 2016
A76: 58 | B76: Город Магнитогорск, Комсомольская, 14 | C76: 1948 | E76: каменные, кирпичные | F76: 3 | G76: 4 | H76: 2692.8 | I76: 2252.9 | J76: 1627 | K76: 73 | L76: 3156200 | M76: 2016
A77: 59 | B77: Город Магнитогорск, Комсомольская, 77 | C77: 1955 | E77: блочные | F77: 3 | G77: 4 | H77: 3078.8 | I77: 2751 | J77: 1835.9 | K77: 102 | L77: 4885049 | M77: 2016
A78: 60 | B78: Город Магнитогорск, Комсомольская, 18 | C78: 1948 | E78: каменные, кирпичные | F78: 3 | G78: 4 | H78: 3060.77 | I78: 2318.17 | J78: 1666.97 | K78: 64 | L78: 4451830 | M78: 2016
A79: 61 | B79: Город Магнитогорск, Ленинградская, 22 | C79: 1955 | E79: смешанные | F79: 5 | G79: 5 | H79: 9450.47 | I79: 6315.6 | J79: 5336.2 | K79: 198 | L79: 2016182 | M79: 2016
A80: 62 | B80: Город Магнитогорск, Ленинградская, 22, корпус 1 | C80: 1955 | E80: смешанные | F80: 4 | G80: 3 | H80: 4161.32 | I80: 2670.4 | J80: 2440.7 | K80: 91 | L80: 1400492 | M80: 2016
A81: 63 | B81: Город Магнитогорск, Лениградская, 5, корпус 2 | C81: 1957 | E81: смешанные | F81: 4 | G81: 4 | H81: 5834.9 | I81: 3690 | J81: 3315.8 | K81: 133 | L81: 446400 | M81: 2016
A82: 64 | B82: Город Магнитогорск, Ломоносова, 22, корпус 1 | C82: 1949 | E82: каменные, кирпичные | F82: 2 | G82: 2 | H82: 788.6 | I82: 553.2 | J82: 472.8 | K82: 38 | L82: 2287693 | M82: 2016
A83: 65 | B83: Город Магнитогорск, Маяковского, 19 | C83: 1951 | E83: каменные, кирпичные | F83: 4 | G83: 9 | H83: 7970.27 | I83: 7235.47 | J83: 5845.07 | K83: 287 | L83: 8745323 | M83: 2016
A84: 66 | B84: Город Магнитогорск, Менделеева, 17, корпус 1 | C84: 1946 | E84: смешанные | F84: 2 | G84: 2 | H84: 1087.4 | I84: 802.1 | J84: 696 | K84: 8 | L84: 4088067 | M84: 2016
A85: 67 | B85: Город Магнитогорск, Менделеева, 18 | C85: 1946 | E85: смешанные | F85: 2 | G85: 2 | H85: 1046.2 | I85: 516.6 | J85: 477.3 | K85: 21 | L85: 913880 | M85: 2016
A86: 68 | B86: Город Магнитогорск, Менделеева, 22/1 | C86: 1945 | E86: блочные | F86: 2 | G86: 2 | H86: 579.8 | I86: 495 | J86: 456.7 | K86: 29 | L86: 1084550 | M86: 2016
A87: 69 | B87: Город Магнитогорск, Менделеева, 22 | C87: 1946 | E87: смешанные | F87: 2 | G87: 2 | H87: 608.01 | I87: 281.8 | J87: 281.8 | K87: 12 | L87: 415400 | M87: 2016
A88: 70 | B88: Город Магнитогорск, Менделеева, 24 | C88: 1946 | E88: смешанные | F88: 2 | G88: 2 | H88: 1060.41 | I88: 514.4 | J88: 474.4 | K88: 22 | L88: 916174 | M88: 2016
A89: 71 | B89: Город Магнитогорск, Менделеева, 25 | C89: 1948 | E89: каменные, кирпичные | F89: 3 | G89: 2 | H89: 1278.1 | I89: 981.2 | J89: 941.4 | K89: 38 | L89: 919360 | M89: 2016
A90: 72 | B90: Город Магнитогорск, Менделеева, 26 | C90: 1946 | E90: смешанные | F90: 2 | G90: 2 | H90: 1056.47 | I90: 516.2 | J90: 516.2 | K90: 23 | L90: 900085 | M90: 2016
A91: 73 | B91: Город Магнитогорск, Московская, 28 | C91: 1958 | E91: смешанные | F91: 3 | G91: 3 | H91: 2148.06 | I91: 1908.36 | J91: 1747.76 | K91: 95 | L91: 1866595 | M91: 2016
A92: 74 | B92: Город Магнитогорск, Московская, 34 | C92: 1957 | E92: смешанные | F92: 2 | G92: 3 | H92: 1385.02 | I92: 1209.62 | J92: 773.82 | K92: 68 | L92: 888770 | M92: 2016
A93: 75 | B93: Город Магнитогорск, Салтыкова - Щедрина, 15 | C93: 1954 | E93: блочные | F93: 2 | G93: 2 | H93: 433 | I93: 385.50 | J93: 385.5 | K93: 17 | L93: 1717462 | M93: 2016
A94: 76 | B94: Город Магнитогорск, Панькова, 26, корпус 1 | C94: 1954 | E94: блочные | F94: 2 | G94: 2 | H94: 468 | I94: 413.53 | J94: 290.33 | K94: 28 | L94: 2305272 | M94: 2016
A95: 77 | B95: Город Магнитогорск, Писарева, 20 | C95: 1959 | E95: смешанные | F95: 3 | G95: 2 | H95: 1187.7 | I95: 1065.3 | J95: 920 | K95: 52 | L95: 860405 | M95: 2016
A96: 78 | B96: Город Магнитогорск, Первомайская, 11 | C96: 1953 | E96: блочные | F96: 3 | G96: 2 | H96: 1953.2 | I96: 1686.2 | J96: 1074.2 | K96: 116 | L96: 3916884 | M96: 2016
A97: 79 | B97: Город Магнитогорск, площадь Горького, 6 | C97: 1948 | E97: каменные, кирпичные | F97: 4 | G97: 3 | H97: 1717.5 | I97: 1500.5 | J97: 1182.7 | K97: 31 | L97: 3071300 | M97: 2016
A98: 80 | B98: Город Магнитогорск, проспект Ленина, 58 | C98: 1958 | E98: смешанные | F98: 5 | G98: 4 | H98: 4146.5 | I98: 2743.4 | J98: 2068.7 | K98: 86 | L98: 707599 | M98: 2016
A99: 81 | B99: Город Магнитогорск, проспект Ленина, 58, корпус 1 | C99: 1958 | E99: смешанные | F99: 5 | G99: 4 | H99: 5158.3 | I99: 3326.5 | J99: 3069.8 | K99: 117 | L99: 862975 | M99: 2016
A100: 82 | B100: Город Магнитогорск, проспект Ленина, 60 | C100: 1958 | E100: смешанные | F100: 5 | G100: 4 | H100: 4141.4 | I100: 2568.8 | J100: 2066.9 | K100: 71 | L100: 651730 | M100: 2016
A101: 83 | B101: Город Магнитогорск, проспект Металлургов, 9 | C101: 1952 | E101: смешанные | F101: 5 | G101: 6 | H101: 9566.47 | I101: 6261.65 | J101: 4997.15 | K101: 156 | L101: 2945729 | M101: 2016
A102: 84 | B102: Город Магнитогорск, проспект Металлургов, 9, корпус 1 | C102: 1952 | E102: смешанные | F102: 3 | G102: 4 | H102: 4054.83 | I102: 2218.6 | J102: 2038.7 | K102: 83 | L102: 1826100 | M102: 2016
A103: 85 | B103: Город Магнитогорск, проспект Металлургов, 11 | C103: 1953 | E103: смешанные | F103: 8 | G103: 3 | H103: 8688.48 | I103: 6200.24 | J103: 4559.2 | K103: 229 | L103: 1794169 | M103: 2016
A104: 86 | B104: Город Магнитогорск, проспект Металлургов, 16 | C104: 1951 | E104: смешанные | F104: 5 | G104: 5 | H104: 5977.5 | I104: 4524.8 | J104: 3635.8 | K104: 144 | L104: 1436787 | M104: 2016
A105: 87 | B105: Город Магнитогорск, проспект Металлургов, 20 | C105: 1957 | E105: каменные, кирпичные | F105: 7 | G105: 2 | H105: 7918.7 | I105: 5443.6 | J105: 3268.4 | K105: 91 | L105: 1719840 | M105: 2015
A106: 88 | B106: Город Магнитогорск, Советская, 23А | C106: 1955 | E106: смешанные | F106: 2 | G106: 3 | H106: 898.4 | I106: 768.1 | J106: 621.5 | K106: 28 | L106: 1017875 | M106: 2016
A107: 89 | B107: Город Магнитогорск, Советская, 27 | C107: 1955 | E107: смешанные | F107: 3 | G107: 2 | H107: 867.1 | I107: 761.2 | J107: 592.7 | K107: 44 | L107: 1775014 | M107: 2016
A108: 90 | B108: Город Магнитогорск, Советская, 29 | C108: 1955 | E108: смешанные | F108: 3 | G108: 3 | H108: 1496.7 | I108: 1355.8 | J108: 1090.5 | K108: 68 | L108: 2274491 | M108: 2016
A109: 91 | B109: Город Магнитогорск, Советская,35 | C109: 1954 | E109: смешанные | F109: 2 | G109: 3 | H109: 894.4 | I109: 764.3 | J109: 614 | K109: 75 | L109: 1626676 | M109: 2016
A110: 92 | B110: Город Магнитогорск, Советская, 31 | C110: 1955 | E110: каменные, кирпичные | F110: 2 | G110: 3 | H110: 869.2 | I110: 766.3 | J110: 501.9 | K110: 52 | L110: 1014897 | M110: 2016
A111: 93 | B111: Город Магнитогорск, Строителей, 44 | C111: 1947 | E111: смешанные | F111: 2 | G111: 2 | H111: 1136.2 | I111: 715.1 | J111: 618 | K111: 34 | L111: 933830 | M111: 2016
A112: 94 | B112: Город Магнитогорск, Уральская, 39 | C112: 1946 | E112: каменные, кирпичные | F112: 2 | G112: 2 | H112: 1053.66 | I112: 519.7 | J112: 478.8 | K112: 28 | L112: 984374 | M112: 2016
A113: 95 | B113: Город Магнитогорск, Уральская, 43 | C113: 1946 | E113: каменные, кирпичные | F113: 2 | G113: 3 | H113: 1539.44 | I113: 771.6 | J113: 712.5 | K113: 39 | L113: 1316105 | M113: 2016
A114: 96 | B114: Город Магнитогорск, Уральская, 43, корпус 1 | C114: 1945 | E114: блочные | F114: 3 | G114: 3 | H114: 1125.9 | I114: 1032 | J114: 980.2 | K114: 54 | L114: 2047631 | M114: 2016
A115: 97 | B115: Город Магнитогорск, Уральская,51 | C115: 1947 | E115: смешанные | F115: 3 | G115: 6 | H115: 4677.95 | I115: 3586.55 | J115: 3126.76 | K115: 96 | L115: 7049985 | M115: 2016
A116: 98 | B116: Город Магнитогорск, Уральская, 58, корпус 1 | C116: 1951 | E116: смешанные | F116: 2 | G116: 2 | H116: 979.8 | I116: 744.8 | J116: 560.4 | K116: 25 | L116: 3018636 | M116: 2016
A117: 99 | B117: Город Магнитогорск, Ушакова, 38 | C117: 1954 | E117: блочные | F117: 2 | G117: 2 | H117: 650.9 | I117: 568.2 | J117: 520.3 | K117: 32 | L117: 870150 | M117: 2015
A118: 100 | B118: Город Магнитогорск, Ушакова, 40 | C118: 1954 | E118: блочные | F118: 2 | G118: 2 | H118: 679.3 | I118: 619.1 | J118: 508.5 | K118: 17 | L118: 810650 | M118: 2016
A119: 101 | B119: Город Магнитогорск, Ушакова, 42 | C119: 1954 | E119: блочные | F119: 2 | G119: 2 | H119: 792.3 | I119: 708.9 | J119: 471.3 | K119: 28 | L119: 810650 | M119: 2016
A120: 102 | B120: Город Магнитогорск, Фрунзе, 15 | C120: 1938 | E120: каменные, кирпичные | F120: 5 | G120: 4 | H120: 2695.84 | I120: 2359.14 | J120: 1636.57 | K120: 128 | L120: 1619163 | M120: 2016
A121: 103 | B121: Город Магнитогорск, Фрунзе, 3 | C121: 1937 | E121: каменные, кирпичные | F121: 5 | G121: 3 | H121: 2362.4 | I121: 2114.1 | J121: 1303.56 | K121: 93 | L121: 2245684 | M121: 2015
A122: 104 | B122: Город Магнитогорск, Цементная, 12 | C122: 1948 | E122: деревянный | F122: 2 | G122: 2 | H122: 431.2 | I122: 391.1 | J122: 342.2 | K122: 26 | L122: 466550 | M122: 2016
A123: 105 | B123: Город Магнитогорск, Цементная, 21 | C123: 1959 | E123: смешанные | F123: 2 | G123: 3 | H123: 959 | I123: 855.5 | J123: 855.5 | K123: 46 | L123: 1251610 | M123: 2016
A124: 106 | B124: Город Магнитогорск, Чайковского, 33 | C124: 1932 | E124: каменные, кирпичные | F124: 3 | G124: 7 | H124: 1951 | I124: 1632 | J124: 1353.1 | K124: 84 | L124: 2560296 | M124: 2016
A125: 107 | B125: Город Магнитогорск, Чайковского, 35 | C125: 1933 | E125: каменные, кирпичные | F125: 3 | G125: 7 | H125: 1903.5 | I125: 1613.8 | J125: 1305.6 | K125: 76 | L125: 1730683 | M125: 2016
A126: 108 | B126: Город Магнитогорск, Чайковского, 37 | C126: 1933 | E126: каменные, кирпичные | F126: 3 | G126: 7 | H126: 1995.2 | I126: 1652.3 | J126: 1417 | K126: 83 | L126: 1730683 | M126: 2016
A127: 109 | B127: Город Магнитогорск, Чайковского, 39 | C127: 1933 | E127: каменные, кирпичные | F127: 3 | G127: 7 | H127: 1989.6 | I127: 1650.6 | J127: 1378.2 | K127: 93 | L127: 1730683 | M127: 2016
A128: Итого по Магнитогорскому городскому округу | H128: =SUM(H72:H127) -> 138480.57 | I128: 101903.63 | J128: 82016.09 | K128: 3938 | L128: =SUM(L72:L127) -> 109455613
A129: Миасский городской округ
A130: 110 | B130: Город Миасс, проспект Автозаводцев, 12 | C130: 1947 | E130: блочные | F130: 3 | G130: 3 | H130: 1591.6 | I130: 1419.6 | J130: 1010.8 | K130: 44 | L130: 1336075 | M130: 2015
A131: 111 | B131: Город Миасс, проспект Автозаводцев, 13 | C131: 1953 | E131: кирпичные | F131: 3 | G131: 3 | H131: 1936.3 | I131: 1786.9 | J131: 1506.8 | K131: 51 | L131: 3129128 | M131: 2016
A132: 112 | B132: Город Миасс, проспект Автозаводцев, 15 | C132: 1953 | E132: кирпичные | F132: 3 | G132: 3 | H132: 1818.1 | I132: 1578.7 | J132: 1079.6 | K132: 44 | L132: 2619156 | M132: 2016
A133: 113 | B133: Город Миасс, проспект Автозаводцев, 18 | C133: 1950 | E133: кирпичные | F133: 4 | G133: 5 | H133: 3720.1 | I133: 3435.2 | J133: 3340.7 | K133: 69 | L133: 3116988 | M133: 2015
A134: 114 | B134: Город Миасс, проспект Автозаводцев, 20 | C134: 1951 | E134: кирпичные | F134: 4 | G134: 5 | H134: 3745 | I134: 2382.6 | J134: 2382.6 | K134: 92 | L134: 3138522 | M134: 2016
A135: 115 | B135: Город Миасс, проспект Автозаводцев, 22 | C135: 1952 | E135: кирпичные | F135: 3 | G135: 4 | H135: 3578.1 | I135: 1683.3 | J135: 933.8 | K135: 63 | L135: 2830617 | M135: 2016
A136: 116 | B136: Город Миасс, проспект Автозаводцев, 25 | C136: 1954 | E136: кирпичные | F136: 3 | G136: 2 | H136: 1363.1 | I136: 1246.4 | J136: 713 | K136: 19 | L136: 1227029 | M136: 2016
A137: 117 | B137: Город Миасс, проспект Автозаводцев, 27 | C137: 1954 | E137: кирпичные | F137: 3 | G137: 3 | H137: 1889.3 | I137: 1706.7 | J137: 1095.7 | K137: 32 | L137: 1426859 | M137: 2015 | N137: 2015
A138: 118 | B138: Город Миасс, проспект Автозаводцев, 35 | C138: 1956 | E138: кирпичные | F138: 3 | G138: 3 | H138: 1686 | I138: 1520.1 | J138: 1118.8 | K138: 57 | L138: 1528047 | M138: 2015
A139: 119 | B139: Город Миасс, Готвальда, 2 | C139: 1961 | E139: кирпичные | F139: 3 | G139: 3 | H139: 1859.2 | I139: 1521.4 | J139: 1514 | K139: 78 | L139: 511280 | M139: 2015
A140: 120 | B140: Город Миасс, Готвальда, 14 | C140: 1962 | E140: кирпичные | F140: 2 | G140: 1 | H140: 975.5 | I140: 660.19 | J140: 660.19 | K140: 47 | L140: 784973 | M140: 2015
A141: 121 | B141: Город Миасс, Готвальда, 40 | C141: 1962 | E141: кирпичные | F141: 4 | G141: 3 | H141: 2586.6 | I141: 1906.5 | J141: 1777.5 | K141: 90 | L141: 1070034 | M141: 2015
A142: 122 | B142: Город Миасс, 60 лет Октября, 24 | C142: 1962 | E142: кирпичные | F142: 2 | G142: 2 | H142: 1118.6 | I142: 746.1 | J142: 632.9 | K142: 53 | L142: 198826 | M142: 2015
A143: 123 | B143: Город Миасс, 8 Июля, 31 | C143: 1963 | E143: кирпичные | F143: 4 | G143: 3 | H143: 2635.9 | I143: 2016.8 | J143: 1974.6 | K143: 83 | L143: 468498 | M143: ГВС-2015; фасад-2016
A144: Итого по Миасскому городскому округу | H144: =SUM(H130:H143) -> 30503.4 | I144: 23610.49 | J144: 19740.99 | K144: 822 | L144: =SUM(L130:L143) -> 23386032
A145: Озерский городской округ
A146: 124 | B146: Город Озерск, проспект Ленина, 28 | C146: 1947 | E146: кирпичные | F146: 2 | G146: 3 | H146: 1000.22 | I146: 836.4 | J146: 836.4 | K146: 32 | L146: 228628 | M146: 2016
A147: 125 | B147: Город Озерск, проспект Ленина, 64 | C147: 1950 | E147: кирпичные | F147: 3 | G147: 7 | H147: 4064.9 | I147: 3600 | J147: 3600 | K147: 116 | L147: 2340165 | M147: 2016
A148: 126 | B148: Город Озерск, проспект Ленина, 70 | C148: 1949 | E148: кирпичные | F148: 2 | G148: 2 | H148: 768.4 | I148: 693.04 | J148: 693.04 | K148: 31 | L148: 1845900 | M148: 2016
A149: 127 | B149: Город Озерск, Южная, 2 | C149: 1949 | E149: кирпичные | F149: 2 | G149: 2 | H149: 769.5 | I149: 690.11 | J149: 690.11 | K149: 23 | L149: 995100 | M149: 2016
A150: 128 | B150: Город Озерск, проспект Победы, 30 | C150: 1950 | E150: кирпичные | F150: 3 | G150: 2 | H150: 1231.63 | I150: 1114.63 | J150: 979.13 | K150: 30 | L150: 990450 | M150: 2016
A151: 129 | B151: Город Озерск, проспект Победы, 32 | C151: 1951 | E151: кирпичные | F151: 3 | G151: 2 | H151: 1211.34 | I151: 1055.9 | J151: 1055.9 | K151: 42 | L151: 937532 | M151: 2016
A152: 130 | B152: Город Озерск, проспект Победы, 46 | C152: 1951 | E152: кирпичные | F152: 3 | G152: 3 | H152: 1429.57 | I152: 1305.1 | J152: 1305.1 | K152: 45 | L152: 3232662 | M152: 2016
A153: 131 | B153: Город Озерск, проспект Победы, 47 | C153: 1951 | E153: кирпичные | F153: 3 | G153: 6 | H153: 3560.48 | I153: 3128.69 | J153: 3128.69 | K153: 107 | L153: 6232542 | M153: 2016
A154: 132 | B154: Город Озерск, проспект Победы, 50 | C154: 1952 | E154: кирпичные | F154: 4 | G154: 4 | H154: 3281 | I154: 2942.5 | J154: 2942.5 | K154: 147 | L154: 1861501 | M154: 2016
A155: 133 | B155: Город Озерск, Маяковского, 3 | C155: 1950 | E155: кирпичные | F155: 2 | G155: 2 | H155: 775.8 | I155: 686.6 | J155: 686.6 | K155: 36 | L155: 1289700 | M155: 2016
A156: 134 | B156: Город Озерск, Менделеева, 6 | C156: 1952 | E156: кирпичные | F156: 3 | G156: 2 | H156: 1536.82 | I156: 1375.96 | J156: 1375.96 | K156: 66 | L156: 2673900 | M156: 2016
A157: 135 | B157: поселок Новогорный, Ленина, 13 | C157: 1954 | E157: кирпичные | F157: 3 | G157: 2 | H157: 1100.4 | I157: 931.6 | J157: 628.4 | K157: 29 | L157: 460414 | M157: 2016
A158: 136 | B158: Город Озерск, Студенческая, 5 | C158: 1952 | E158: кирпичные | F158: 3 | G158: 2 | H158: 1527.79 | I158: 1376.02 | J158: 1376.02 | K158: 57 | L158: 942805 | M158: 2016
A159: 137 | B159: Город Озерск, Свердлова, 28 | C159: 1951 | E159: кирпичные | F159: 2 | G159: 2 | H159: 1574.59 | I159: 937.59 | J159: 937.59 | K159: 36 | L159: 1144687 | M159: 2016
A160: Итого по Озерскому городскому округу | H160: =SUM(H146:H159) -> 23832.44 | I160: 20674.14 | J160: 20235.44 | K160: 797 | L160: =SUM(L146:L159) -> 25175986
A161: Снежинский городской округ
A162: 138 | B162: Поселок Сокол, Бажова, 2 | C162: 1954 | E162: кирпичные | F162: 2 | G162: 2 | H162: 562.7 | I162: 452.5 | J162: 452.5 | K162: 21 | L162: 937275 | M162: 2016
A163: 139 | B163: Поселок Сокол, Бажова, 4 | C163: 1951 | E163: кирпичные | F163: 2 | G163: 2 | H163: 606.13 | I163: 480.23 | J163: 480.23 | K163: 20 | L163: 1109571 | M163: 2016
A164: 140 | B164: Поселок Сокол, Бажова, 7 | C164: 1954 | E164: кирпичные | F164: 2 | G164: 1 | H164: 800.6 | I164: 617.1 | J164: 617.1 | K164: 14 | L164: 1755288 | M164: ХВС-2015; ЭЭ, ВО, крыша, фундамент-2016
A165: 141 | B165: Поселок Сокол, Кирова, 5 | C165: 1949 | E165: кирпичные | F165: 3 | G165: 2 | H165: 1514.5 | I165: 1203.8 | J165: 1203.8 | K165: 45 | L165: 1784777 | M165: ХВС-2015; ЭЭ, ВО, фасад, фундамент-2016
A166: 142 | B166: Поселок Сокол, Кирова, 7 | C166: 1948 | E166: кирпичные | F166: 3 | G166: 2 | H166: 1472.7 | I166: 1201.1 | J166: 1201.1 | K166: 53 | L166: 1718265 | M166: ХВС-2015; ЭЭ, ВО, фасад, фундамент-2016
A167: 143 | B167: Поселок Ближний Береговой, Центральная, 1 | C167: 1956 | E167: деревянный | F167: 2 | G167: 1 | H167: 501.2 | I167: 403.5 | J167: 169.6 | K167: 35 | L167: 1667762 | M167: 2016
A168: 144 | B168: Поселок Ближний Береговой, Центральная, 5 | C168: 1950 | E168: кирпичные | F168: 2 | G168: 1 | H168: 750.4 | I168: 617.2 | J168: 617.2 | K168: 33 | L168: 1629387 | M168: 2016
A169: 145 | B169: Город Снежинск, Чапаева, 6 | C169: 1957 | E169: деревянный | F169: 2 | G169: 1 | H169: 612.03 | I169: 514 | J169: 438.2 | K169: 29 | L169: 391262 | M169: 2016
A170: 146 | B170: Город Снежинск, Чапаева, 8 | C170: 1957 | E170: деревянный | F170: 2 | G170: 1 | H170: 620.13 | I170: 522.1 | J170: 181.5 | K170: 28 | L170: 391262 | M170: 2016
A171: 147 | B171: Город Снежинск, Чапаева, 10 | C171: 1957 | E171: деревянный | F171: 2 | G171: 1 | H171: 612.13 | I171: 514.1 | J171: 273.7 | K171: 24 | L171: 2482126 | M171: 2016
A172: Итого по Снежинскому городскому округу | H172: =SUM(H162:H171) -> 8052.52 | I172: 6525.63 | J172: 5634.93 | K172: 302 | L172: =SUM(L162:L171) -> 13866975
A173: Троицкий городской округ
A174: 148 | B174: Город Троицк, проспект Строителей, 17 | C174: 1959 | E174: блочные | F174: 2 | G174: 3 | H174: 2036.7 | I174: 1428.3 | J174: 1428.3 | K174: 49 | L174: 2407310 | M174: 2016
A175: 149 | B175: Город Троицк, Автодромная, 3 | C175: 1986 | E175: каменные, кирпичные | F175: 2 | G175: 3 | H175: 1352.2 | I175: 1186.6 | J175: 682.2 | K175: 76 | L175: 1607357 | M175: 2015
A176: 150 | B176: Город Троицк, имени П.Г.Ильина, 56 | C176: 1960 | E176: блочные | F176: 1 | G176: 2 | H176: 585.6 | I176: 533.9 | J176: 533.9 | K176: 16 | L176: 1548053 | M176: 2016
A177: 151 | B177: Город Троицк, Кирова, 37 | C177: 1962 | E177: кирпичные | F177: 4 | G177: 3 | H177: 2369.9 | I177: 2017.8 | J177: 1406.3 | K177: 62 | L177: 618256 | M177: 2016
A178: 152 | B178: Город Троицк, ул. Пионерская, 59 | C178: 1955 | E178: кирпичные | F178: 2 | G178: 1 | H178: 444.7 | I178: 409.8 | J178: 280.4 | K178: 13 | L178: 480689 | M178: 2015
A179: 153 | B179: Город Троицк, ул. Пионерская, 61 | C179: 1957 | E179: кирпичные | F179: 2 | G179: 1 | H179: 444.9 | I179: 409.7 | J179: 276 | K179: 15 | L179: 469869 | M179: 2015
A180: Итого по Троицкому городскому округу | H180: =SUM(H174:H179) -> 7234 | I180: 5986.1 | J180: 4607.1 | K180: 231 | L180: =SUM(L174:L179) -> 7131534
A181: Усть-Катавский городской округ
A182: 161 | B182: Город Усть-Катав, Ленина, 42 | C182: 1978 | E182: кирпичные | F182: 5 | G182: 2 | H182: 4136.81 | I182: 3082.53 | J182: 1817.49 | K182: 172 | L182: 3341989 | M182: 2016
A183: 162 | B183: Город Усть-Катав, Паранино, 29 | C183: 1979 | E183: смешанные | F183: 2 | G183: 1 | H183: 442.6 | I183: 371.2 | J183: 371.2 | K183: 16 | L183: 327228 | M183: 2015
A184: Итого по Усть-Катавскому городскому округу | H184: =H182+H183 -> 4579.41 | I184: 3453.73 | J184: 2188.69 | K184: 188 | L184: =L182+L183 -> 3669217
A185: Чебаркульский городской округ
A186: 163 | B186: Город Чебаркуль, Ленина, 11 | C186: 1952 | E186: блочные | F186: 3 | G186: 2 | H186: 824.5 | I186: 745.5 | J186: 680.8 | K186: 25 | L186: 1435229 | M186: 2015
A187: 164 | B187: Город Чебаркуль, Ленина, 32 | C187: 1955 | E187: блочные | F187: 4 | G187: 3 | H187: 2866 | I187: 2636.4 | J187: 1916.3 | K187: 49 | L187: 1658272 | M187: 2015
A188: 165 | B188: Город Чебаркуль, Ленина, 34 | C188: 1955 | E188: блочные | F188: 4 | G188: 3 | H188: 2797.6 | I188: 2568.4 | J188: 1957.1 | K188: 54 | L188: 1686852 | M188: 2015
A189: 166 | B189: Город Чебаркуль, Ленина, 7 | C189: 1952 | E189: блочные | F189: 3 | G189: 2 | H189: 1031 | I189: 937.8 | J189: 632 | K189: 19 | L189: 753631 | M189: 2015
A190: 167 | B190: Город Чебаркуль, Ленина, 9 | C190: 1953 | E190: блочные | F190: 3 | G190: 2 | H190: 974.5 | I190: 934.3 | J190: 776.3 | K190: 20 | L190: 1800581 | M190: 2015
A191: Итого по Чебаркульскому городскому округу | H191: =SUM(H186:H190) -> 8493.6 | I191: 7822.4 | J191: 5962.5 | K191: 167 | L191: =SUM(L186:L190) -> 7334565
A192: Челябинский городской округ
A193: 168 | B193: Город Челябинск, переулок Руставели, 11 | C193: 1952 | E193: каменные, кирпичные | F193: 4 | G193: 3 | H193: 3565.8 | I193: 2531.7 | J193: 2284.6 | K193: 120 | L193: 3257345 | M193: 2016
A194: 169 | B194: Город Челябинск, переулок Руставели, 5 | C194: 1942 | E194: каменные, кирпичные | F194: 4 | G194: 3 | H194: 3757.5 | I194: 3286.6 | J194: 2396.2 | K194: 206 | L194: 1476797 | M194: 2016
A195: 170 | B195: Город Челябинск, площадь Революции, 1 | C195: 1957 | E195: каменные, кирпичные | F195: 8 | G195: 4 | H195: 10174.7 | I195: 8512.3 | J195: 7371.6 | K195: 168 | L195: 2697100 | M195: 2016
A196: 171 | B196: Город Челябинск, поселок Мясокомбинат, 10 | C196: 1957 | E196: каменные, кирпичные | F196: 3 | G196: 2 | H196: 1017.6 | I196: 947.2 | J196: 947.2 | K196: 55 | L196: 320710 | M196: 2016
A197: 172 | B197: Город Челябинск, поселок Мясокомбинат, 11 | C197: 1957 | E197: каменные, кирпичные | F197: 3 | G197: 2 | H197: 1023.1 | I197: 952.7 | J197: 660.2 | K197: 28 | L197: 3163 | M197: 2016
A198: 173 | B198: Город Челябинск, поселок Мясокомбинат, 14 | C198: 1946 | E198: каменные, кирпичные | F198: 2 | G198: 1 | H198: 522.5 | I198: 462.4 | J198: 383.7 | K198: 35 | L198: 183179 | M198: 2016
A199: 174 | B199: Город Челябинск, поселок Мясокомбинат, 5 | C199: 1953 | E199: кирпичные | F199: 2 | G199: 2 | H199: 391.8 | I199: 347.8 | J199: 241.3 | K199: 19 | L199: 202754 | M199: 2016
A200: 175 | B200: Город Челябинск, проспект Ленина, 16 | C200: 1933 | E200: каменные, кирпичные | F200: 4 | G200: 6 | H200: 6092.9 | I200: 3707.3 | J200: 2855.4 | K200: 101 | L200: 2207993 | M200: 2016
A201: 176 | B201: Город Челябинск, проспект Ленина, 24 | C201: 1933 | E201: каменные, кирпичные | F201: 5 | G201: 10 | H201: 11177.8 | I201: 10364.7 | J201: 6562.5 | K201: 189 | L201: 3918816 | M201: 2016
A202: 177 | B202: Город Челябинск, проспект Ленина, 45 | C202: 1935 | E202: каменные, кирпичные | F202: 5 | G202: 9 | H202: 7948.7 | I202: 6433 | J202: 4768.7 | K202: 160 | L202: 2368155 | M202: 2016
A203: 178 | B203: Город Челябинск, проспект Ленина, 47 | C203: 1951 | E203: каменные, кирпичные | F203: 5 | G203: 2 | H203: 2023.2 | I203: 1809.7 | J203: 1049.7 | K203: 42 | L203: 668321 | M203: 2016
... 324 more rows

Sheet перечень
F1: ПРИЛОЖЕНИЕ 5 к краткосрочному плану реализации региональной программы капитального ремонта общего имущества в многоквартирных домах Челябинской области на 2024 - 2026 годы (в редакции постановления Правительства Челябинской области от _________________2024 г. №_________)
B3: Перечень многоквартирных домов, капитальный ремонт которых планируется осуществить в рамках III этапа Плана за счет средств обязательных взносов собственников помещений в многоквартирных домах
B4: № п/п | C4: Адрес многоквартирного дома* | D4: Год | F4: Материал стен | G4: Количество этажей | H4: Количество подъездов | I4: Общая площадь многоквартирного дома, всего | J4: Площадь помещений многоквартирного дома | L4: Количество жителей, зарегистрированных в многоквартирном доме | M4: Стоимость капитального ремонта (за счет обязательных взносов собственников) | N4: Плановая дата завершения работ
D5: ввода в эксплуатацию | E5: завершения последнего капитального ремонта | J5: всего | K5: в том числе жилых помещений, находящихся в собственности граждан
I7: кв. метров | J7: кв. метров | K7: кв. метров | L7: человек | M7: рублей | S7: 2 | T7: 4 | U7: 5 | V7: 6 | W7: 7 | X7: 8
B8: 1 | C8: 2 | D8: 3 | E8: 4 | F8: 5 | G8: 6 | H8: 7 | I8: 8 | J8: 9 | K8: 10 | L8: 11 | M8: 12 | N8: 13
B9: Верхнеуфалейский городской округ
B10: 1. | C10: г. Верхний Уфалей, п. Строителей, д. 1 | D10: 1960 | F10: шлакоблочные | G10: 2 | H10: 2 | I10: 689.8 | J10: 641.6 | L10: 34 | M10: 20582.4 | N10: 2025-2026
B11: 2. | C11: г. Верхний Уфалей, п. Строителей, д. 10 | D11: 1960 | F11: шлакоблочные | G11: 2 | H11: 2 | I11: 689 | J11: 639.8 | L11: 42 | M11: 20582.4 | N11: 2025-2026
B12: 3. | C12: г. Верхний Уфалей, п. Строителей, д. 21 | D12: 1962 | F12: шлакоблочные | G12: 2 | H12: 3 | I12: 1084.6 | J12: 1011.6 | L12: 31 | M12: 2997806.53 | N12: 2025-2026
B13: 4. | C13: г. Верхний Уфалей, п. Строителей, д. 23 | D13: 1963 | F13: шлакоблочные | G13: 2 | H13: 3 | I13: 1093.5 | J13: 1024.3 | L13: 34 | M13: 43737.6 | N13: 2025-2026
B14: 5. | C14: г. Верхний Уфалей, п. Строителей, д. 25 | D14: 1962 | F14: шлакоблочные | G14: 2 | H14: 3 | I14: 1066 | J14: 990.3 | L14: 42 | M14: 43737.6 | N14: 2025-2026
B15: 6. | C15: г. Верхний Уфалей, п. Строителей, д. 3 | D15: 1960 | F15: шлакоблочные | G15: 2 | H15: 2 | I15: 692.7 | J15: 639 | L15: 34 | M15: 20582.4 | N15: 2025-2026
B16: 7. | C16: г. Верхний Уфалей, п. Строителей, д. 5 | D16: 1960 | F16: шлакоблочные | G16: 2 | H16: 2 | I16: 690.4 | J16: 637.9 | L16: 31 | M16: 20582.4 | N16: 2025-2026
B17: 8. | C17: г. Верхний Уфалей, п. Строителей, д. 8 | D17: 1960 | F17: шлакоблочные | G17: 2 | H17: 2 | I17: 696.9 | J17: 647.6 | L17: 23 | M17: 20582.4 | N17: 2025-2026
B18: 9. | C18: г. Верхний Уфалей, п. Строителей, д. 9 | D18: 1960 | F18: шлакоблочные | G18: 2 | H18: 2 | I18: 699.2 | J18: 648.7 | L18: 23 | M18: 20582.4 | N18: 2025-2026
B19: 10. | C19: г. Верхний Уфалей, пер. Клубный, д. 5 | D19: 1954 | F19: шлакоблочные | G19: 2 | H19: 1 | I19: 520.8 | J19: 483.8 | L19: 15 | M19: 181148.1 | N19: 2025-2026
B20: 11. | C20: г. Верхний Уфалей, ул. Карла Маркса, д. 125 | D20: 1958 | F20: шлакоблочные | G20: 2 | H20: 2 | I20: 687.5 | J20: 628.2 | L20: 25 | M20: 43737.6 | N20: 2025-2026
B21: 12. | C21: г. Верхний Уфалей, ул. Ленина, д. 1А | D21: 1958 | F21: шлакоблочные | G21: 2 | H21: 2 | I21: 721.1 | J21: 648.8 | L21: 21 | M21: 25470.72 | N21: 2025-2026
B22: 13. | C22: г. Верхний Уфалей, ул. Ленина, д. 3 | D22: 1959 | F22: шлакоблочные | G22: 2 | H22: 2 | I22: 722 | J22: 646.9 | L22: 22 | M22: 25470.72 | N22: 2025-2026
B23: 14. | C23: г. Верхний Уфалей, ул. Ленина, д. 3А | D23: 1959 | F23: шлакоблочные | G23: 2 | H23: 2 | I23: 712.9 | J23: 641.8 | L23: 26 | M23: 25470.72 | N23: 2025-2026
B24: 15. | C24: г. Верхний Уфалей, ул. Лермонтова, д. 1 | D24: 1956 | F24: шлакоблочные | G24: 3 | H24: 3 | I24: 1377.6 | J24: 1280.8 | L24: 31 | M24: 41550.72 | N24: 2025-2026
B25: 16. | C25: г. Верхний Уфалей, ул. Лермонтова, д. 2 | D25: 1956 | F25: шлакоблочные | G25: 3 | H25: 3 | I25: 1220.6 | J25: 1093.2 | L25: 34 | M25: 38849.28 | N25: 2025-2026
B26: 17. | C26: г. Верхний Уфалей, ул. Лермонтова, д. 4 | D26: 1956 | F26: шлакоблочные | G26: 3 | H26: 3 | I26: 1156.6 | J26: 928.7 | L26: 33 | M26: 40392.96 | N26: 2025-2026
B27: 18. | C27: г. Верхний Уфалей, ул. Маяковского, д. 14 | D27: 1959 | F27: шлакоблочные | G27: 3 | H27: 4 | I27: 2096.2 | J27: 1572.6 | L27: 68 | M27: 63548.16 | N27: 2025-2026
B28: 19. | C28: г. Верхний Уфалей, ул. Маяковского, д. 16 | D28: 1958 | F28: шлакоблочные | G28: 3 | H28: 4 | I28: 2078.2 | J28: 1658 | L28: 54 | M28: 74611.2 | N28: 2025-2026
B29: 20. | C29: г. Верхний Уфалей, ул. Маяковского, д. 20 | D29: 1959 | F29: шлакоблочные | G29: 3 | H29: 4 | I29: 2038.8 | J29: 1717.9 | L29: 47 | M29: 1609074.04 | N29: 2025-2026
B30: 21. | C30: г. Верхний Уфалей, ул. Некрасова, д. 10 | D30: 1959 | F30: кирпичные | G30: 2 | H30: 3 | I30: 1088.6 | J30: 1011.4 | L30: 39 | M30: 28300.8 | N30: 2025-2026
B31: 22. | C31: г. Верхний Уфалей, ул. Некрасова, д. 14 | D31: 1959 | F31: шлакоблочные | G31: 2 | H31: 2 | I31: 700.2 | J31: 649.3 | L31: 24 | M31: 30101.76 | N31: 2025-2026
B32: 23. | C32: г. Верхний Уфалей, ул. Некрасова, д. 2 | D32: 1958 | F32: шлакоблочные | G32: 2 | H32: 2 | I32: 515.2 | J32: 469 | L32: 9 | M32: 25728 | N32: 2025-2026
B33: 24. | C33: г. Верхний Уфалей, ул. Некрасова, д. 4 | D33: 1957 | F33: шлакоблочные | G33: 2 | H33: 2 | I33: 506.7 | J33: 455.8 | L33: 12 | M33: 25728 | N33: 2025-2026
B34: 25. | C34: г. Верхний Уфалей, ул. Некрасова, д. 6 | D34: 1959 | F34: шлакоблочные | G34: 2 | H34: 2 | I34: 671.6 | J34: 620.7 | L34: 20 | M34: 25728 | N34: 2025-2026
B35: 26. | C35: г. Верхний Уфалей, ул. Победы, д. 24 | D35: 1956 | G35: 2 | H35: 1 | I35: 504.7 | J35: 465.6 | L35: 17 | M35: 29844.48 | N35: 2025-2026
B36: 27. | C36: г. Верхний Уфалей, ул. Победы, д. 28 | D36: 1956 | F36: деревянные | G36: 2 | H36: 1 | I36: 449.6 | J36: 408.1 | L36: 15 | M36: 19296 | N36: 2025-2026
B37: 28. | C37: г. Верхний Уфалей, ул. Победы, д. 34 | D37: 1959 | F37: шлакоблочные | G37: 3 | H37: 2 | I37: 950.2 | J37: 805 | L37: 20 | M37: 24184.32 | N37: 2025-2026
B38: 29. | C38: г. Верхний Уфалей, ул. Победы, д. 36 | D38: 1951 | F38: шлакоблочные | G38: 2 | H38: 2 | I38: 857.7 | J38: 809.3 | L38: 29 | M38: 1865428.9 | N38: 2025-2026
B39: 30. | C39: г. Верхний Уфалей, ул. Победы, д. 40 | D39: 1958 | F39: шлакоблочные | G39: 2 | H39: 3 | I39: 1058.7 | J39: 1015.3 | L39: 30 | M39: 40135.68 | N39: 2025-2026
B40: 31. | C40: г. Верхний Уфалей, ул. Победы, д. 49А | D40: 1974 | F40: шлакоблочные | G40: 2 | H40: 3 | I40: 971.1 | J40: 901.1 | L40: 31 | M40: 72552.96 | N40: 2025-2026
B41: 32. | C41: г. Верхний Уфалей, ул. Прямицына, д. 39 | D41: 1966 | F41: шлакоблочные | G41: 5 | H41: 4 | I41: 3644.9 | J41: 2787.5 | L41: 109 | M41: 90048 | N41: 2025-2026
B42: 33. | C42: г. Верхний Уфалей, ул. Строителей, д. 25 | D42: 1962 | F42: шлакоблочные | G42: 2 | H42: 2 | I42: 701.5 | J42: 649.3 | L42: 25 | M42: 36019.2 | N42: 2025-2026
B43: 34. | C43: г. Верхний Уфалей, ул. Уфалейская, д. 1 | D43: 1956 | F43: шлакоблочные | G43: 2 | H43: 2 | I43: 697.5 | J43: 638.5 | L43: 36 | M43: 32931.84 | N43: 2025-2026
B44: Итого по Верхнеуфалейскому городскому округу | I44: =SUM(I10:I43) -> 34052.6 | J44: =SUM(J10:J43) -> 29867.4 | L44: =SUM(L10:L43) -> 1086 | M44: =SUM(M10:M43) -> 7724128.29
B45: Златоустовский городской округ
B46: 35. | C46: г. Златоуст, п. ЗЭС Челябэнерго, д. 4 | D46: 1952 | F46: деревянные | G46: 2 | H46: 1 | I46: 389.1 | J46: 330.3 | L46: 14 | M46: 3267918.35 | N46: 2025-2026
B47: 36. | C47: г. Златоуст, пер. Клубный, д. 1 | D47: 1955 | F47: блочные | G47: 4 | H47: 2 | I47: 2024.9 | J47: 1836.2 | L47: 65 | M47: 31645.44 | N47: 2025-2026
B48: 37. | C48: г. Златоуст, пр-кт им. Ю.А. Гагарина 2-я линия, д. 4 | D48: 1964 | F48: кирпичные | G48: 9 | H48: 1 | I48: 3217.7 | J48: 2047.2 | L48: 93 | M48: 84902.4 | N48: 2025-2026
B49: 38. | C49: г. Златоуст, пр-кт Мира, д. 18 | D49: 1953 | F49: кирпичные | G49: 4 | H49: 2 | I49: 2377.3 | J49: 1601.6 | L49: 41 | M49: 68951.04 | N49: 2025-2026
B50: 39. | C50: г. Златоуст, пр-кт Мира, д. 2 | D50: 1954 | F50: кирпичные | G50: 4 | H50: 3 | I50: 2779.2 | J50: 2485.6 | L50: 85 | M50: 96222.72 | N50: 2025-2026
B51: 40. | C51: г. Златоуст, пр-кт Мира, д. 20 | D51: 1958 | F51: кирпичные | G51: 4 | H51: 5 | I51: 3892.6 | J51: 3159.6 | L51: 98 | M51: 100081.92 | N51: 2025-2026
B52: 41. | C52: г. Златоуст, ул. Дворцовая, д. 14 | D52: 1959 | F52: кирпичные | G52: 5 | H52: 2 | I52: 1839.7 | J52: 1635.9 | L52: 66 | M52: 77698.56 | N52: 2025-2026
B53: 42. | C53: г. Златоуст, ул. Дворцовая, д. 16 | D53: 1957 | F53: кирпичные | G53: 5 | H53: 4 | I53: 3978 | J53: 3691.3 | L53: 139 | M53: 96094.08 | N53: 2025-2026
B54: 43. | C54: г. Златоуст, ул. Златоустовская, д. 44 | D54: 1951 | F54: блочные | G54: 2 | H54: 1 | I54: 476.8 | J54: 467.4 | L54: 18 | M54: 23669.76 | N54: 2025-2026
B55: 44. | C55: г. Златоуст, ул. им. А.Н. Островского, д. 4 | D55: 1954 | F55: кирпичные | G55: 3 | H55: 3 | I55: 2087.5 | J55: 1788.7 | L55: 69 | M55: 107028.48 | N55: 2025-2026
B56: 45. | C56: г. Златоуст, ул. им. А.Н. Радищева, д. 3 | D56: 1955 | F56: кирпичные | G56: 3 | H56: 3 | I56: 2589.5 | J56: 1848.6 | L56: 61 | M56: 819847.72 | N56: 2025-2026
B57: 46. | C57: г. Златоуст, ул. им. А.С. Грибоедова, д. 10 | D57: 1960 | F57: смешанные | G57: 3 | H57: 2 | I57: 1041.7 | J57: 972.8 | L57: 34 | M57: 61747.2 | N57: 2025-2026
B58: 47. | C58: г. Златоуст, ул. им. А.С. Грибоедова, д. 5 | D58: 1962 | F58: панельные | G58: 4 | H58: 2 | I58: 1475.5 | J58: 1215.7 | L58: 57 | M58: 50941.44 | N58: 2025-2026
B59: 48. | C59: г. Златоуст, ул. им. А.С. Макаренко, д. 1 | D59: 1955 | F59: кирпичные | G59: 4 | H59: 3 | I59: 2620.9 | J59: 2332.9 | L59: 70 | M59: 36276.48 | N59: 2025-2026
B60: 49. | C60: г. Златоуст, ул. им. А.С. Макаренко, д. 2 | D60: 1955 | F60: блочные | G60: 4 | H60: 1 | I60: 784.2 | J60: 701.8 | L60: 27 | M60: 17546.5 | N60: 2025-2026
B61: 50. | C61: г. Златоуст, ул. им. А.С. Макаренко, д. 6 | D61: 1956 | F61: кирпичные | G61: 3 | H61: 3 | I61: 1465 | J61: 1349.4 | L61: 56 | M61: 7461.12 | N61: 2025-2026
B62: 51. | C62: г. Златоуст, ул. им. Б.А. Ручьева, д. 1 | D62: 1954 | F62: кирпичные | G62: 3 | H62: 2 | I62: 1518.3 | J62: 1356.4 | L62: 50 | M62: 34990.08 | N62: 2025-2026
B63: 52. | C63: г. Златоуст, ул. им. Б.А. Ручьева, д. 13 | D63: 1952 | F63: блочные | G63: 2 | H63: 2 | I63: 762.7 | J63: 677.2 | L63: 33 | M63: 18781.44 | N63: 2025-2026
B64: 53. | C64: г. Златоуст, ул. им. Б.А. Ручьева, д. 7 | D64: 1959 | F64: кирпичные | G64: 4 | H64: 2 | I64: 2029.6 | J64: 2027 | L64: 72 | M64: 12092.16 | N64: 2025-2026
B65: 54. | C65: г. Златоуст, ул. им. Братьев Пудовкиных, д. 3 | D65: 1954 | F65: кирпичные | G65: 4 | H65: 1 | I65: 810.5 | J65: 808.5 | L65: 30 | M65: 8618.88 | N65: 2025-2026
B66: 55. | C66: г. Златоуст, ул. им. Братьев Пудовкиных, д. 7 | D66: 1954 | F66: кирпичные | G66: 4 | H66: 1 | I66: 802.2 | J66: 714.8 | L66: 28 | M66: 8618.88 | N66: 2025-2026
B67: 56. | C67: г. Златоуст, ул. им. И.И. Шишкина, д. 5 | D67: 1958 | F67: кирпичные | G67: 3 | H67: 3 | I67: 2033.7 | J67: 1926.4 | L67: 66 | M67: 52227.84 | N67: 2025-2026
B68: 57. | C68: г. Златоуст, ул. им. И.М. Мельнова, д. 2 | D68: 1960 | F68: блочные | G68: 4 | H68: 3 | I68: 2097.3 | J68: 1954.6 | L68: 91 | M68: 54286.08 | N68: 2025-2026
B69: 58. | C69: г. Златоуст, ул. им. И.С. Тургенева, д. 14 | D69: 1959 | F69: смешанные | G69: 5 | H69: 4 | I69: 4034 | J69: 3600.8 | L69: 147 | M69: 83873.28 | N69: 2025-2026
B70: 59. | C70: г. Златоуст, ул. им. И.С. Тургенева, д. 15 | D70: 1960 | F70: смешанные | G70: 5 | H70: 6 | I70: 5156.7 | J70: 4776.9 | L70: 127 | M70: 161057.28 | N70: 2025-2026
B71: 60. | C71: г. Златоуст, ул. им. И.С. Тургенева, д. 17 | D71: 1960 | F71: смешанные | G71: 4 | H71: 4 | I71: 2793.8 | J71: 2483.7 | L71: 112 | M71: 83873.28 | N71: 2025-2026
B72: 61. | C72: г. Златоуст, ул. им. И.С. Тургенева, д. 4 | D72: 1955 | F72: кирпичные | G72: 3 | H72: 3 | I72: 1430.9 | J72: 1045.3 | L72: 41 | M72: 35504.64 | N72: 2025-2026
B73: 62. | C73: г. Златоуст, ул. им. И.С. Тургенева, д. 7 | D73: 1958 | F73: кирпичные | G73: 4 | H73: 4 | I73: 4141 | J73: 3614.4 | L73: 118 | M73: 73067.52 | N73: 2025-2026
B74: 63. | C74: г. Златоуст, ул. им. Карла Маркса, д. 11 | D74: 1952 | F74: кирпичные | G74: 5 | H74: 8 | I74: 7812.3 | J74: 7082.4 | L74: 205 | M74: 333685.36 | N74: 2025-2026
B75: 64. | C75: г. Златоуст, ул. им. Карла Маркса, д. 12 | D75: 1954 | F75: смешанные | G75: 4 | H75: 1 | I75: 970.4 | J75: 685.9 | L75: 17 | M75: 21096.96 | N75: 2025-2026
B76: 65. | C76: г. Златоуст, ул. им. Карла Маркса, д. 17 | D76: 1950 | F76: блочные | G76: 4 | H76: 4 | I76: 2845.8 | J76: 2541 | L76: 63 | M76: 45487.11 | N76: 2025-2026
B77: 66. | C77: г. Златоуст, ул. им. Карла Маркса, д. 19 | D77: 1951 | F77: блочные | G77: 3 | H77: 2 | I77: 1504.22 | J77: 1374.16 | L77: 33 | M77: 60203.52 | N77: 2025-2026
B78: 67. | C78: г. Златоуст, ул. им. Карла Маркса, д. 20 | D78: 1954 | F78: шлакоблочные | G78: 4 | H78: 3 | I78: 3020.8 | J78: 2689.6 | L78: 73 | M78: 52227.84 | N78: 2025-2026
B79: 68. | C79: г. Златоуст, ул. им. Карла Маркса, д. 24 | D79: 1954 | F79: кирпичные | G79: 4 | H79: 3 | I79: 2664.4 | J79: 2664.4 | L79: 73 | M79: 63805.44 | N79: 2025-2026
B80: 69. | C80: г. Златоуст, ул. им. Карла Маркса, д. 25 | D80: 1950 | F80: кирпичные | G80: 3 | H80: 2 | I80: 1495.78 | J80: 1359.6 | L80: 41 | M80: 40650.24 | N80: 2025-2026
B81: 70. | C81: г. Златоуст, ул. им. Карла Маркса, д. 29 | D81: 1952 | F81: кирпичные | G81: 4 | H81: 2 | I81: 1720.7 | J81: 1647.3 | L81: 34 | M81: 41936.64 | N81: 2025-2026
B82: 71. | C82: г. Златоуст, ул. им. Карла Маркса, д. 31 | D82: 1955 | F82: блочные | G82: 4 | H82: 5 | I82: 5456.3 | J82: 5335.3 | L82: 139 | M82: 21096.96 | N82: 2025-2026
B83: 72. | C83: г. Златоуст, ул. им. Карла Маркса, д. 33 | D83: 1952 | F83: кирпичные | G83: 4 | H83: 2 | I83: 2137 | J83: 1937.3 | L83: 60 | M83: 41164.8 | N83: 2025-2026
B84: 73. | C84: г. Златоуст, ул. им. Карла Маркса, д. 35 | D84: 1956 | F84: кирпичные | G84: 5 | H84: 3 | I84: 3198.32 | J84: 2619.6 | L84: 79 | M84: 101625.6 | N84: 2025-2026
B85: 74. | C85: г. Златоуст, ул. им. Карла Маркса, д. 37 | D85: 1962 | F85: блочные | G85: 5 | H85: 3 | I85: 2765.2 | J85: 2227.2 | L85: 83 | M85: 87475.2 | N85: 2025-2026
B86: 75. | C86: г. Златоуст, ул. им. Карла Маркса, д. 4 | D86: 1953 | F86: кирпичные | G86: 5 | H86: 9 | I86: 8579.24 | J86: 8206.1 | L86: 244 | M86: 223268886.1 | N86: 2025-2026
B87: 76. | C87: г. Златоуст, ул. им. Карла Маркса, д. 47 | D87: 1958 | F87: блочные | G87: 5 | H87: 5 | I87: 6569 | J87: 5734.38 | L87: 183 | M87: 185756.16 | N87: 2025-2026
B88: 77. | C88: г. Златоуст, ул. им. Карла Маркса, д. 49 | D88: 1957 | F88: блочные | G88: 4 | H88: 3 | I88: 3282.8 | J88: 3016.7 | L88: 114 | M88: 101882.88 | N88: 2025-2026
B89: 78. | C89: г. Златоуст, ул. им. Карла Маркса, д. 8 | D89: 1954 | F89: кирпичные | G89: 4 | H89: 4 | I89: 3221.2 | J89: 3221.2 | L89: 110 | M89: 69440.48 | N89: 2025-2026
B90: 79. | C90: г. Златоуст, ул. им. Карла Маркса, д. 9 | D90: 1953 | F90: блочные | G90: 4 | H90: 3 | I90: 1817.5 | J90: 1581.3 | L90: 41 | M90: 47596.8 | N90: 2025-2026
B91: 80. | C91: г. Златоуст, ул. им. М.И. Калинина, д. 1 | D91: 1928 | F91: кирпичные | G91: 4 | H91: 2 | I91: 1423 | J91: 1105.6 | L91: 49 | M91: 42451.2 | N91: 2025-2026
B92: 81. | C92: г. Златоуст, ул. им. М.И. Калинина, д. 8 | D92: 1931 | F92: кирпичные | G92: 2 | H92: 1 | I92: 285.6 | J92: 249.9 | L92: 13 | M92: 14922.24 | N92: 2025-2026
B93: 82. | C93: г. Златоуст, ул. им. П.А. Румянцева, д. 10 | D93: 1959 | F93: блочные | G93: 4 | H93: 3 | I93: 2402.2 | J93: 1943.79 | L93: 77 | M93: 20839.68 | N93: 2025-2026
B94: 83. | C94: г. Златоуст, ул. им. П.А. Румянцева, д. 16 | D94: 1962 | F94: кирпичные | G94: 4 | H94: 2 | I94: 1550.59 | J94: 1550.59 | L94: 58 | M94: 46567.68 | N94: 2025-2026
B95: 84. | C95: г. Златоуст, ул. им. П.П. Аносова, д. 178 | D95: 1958 | F95: кирпичные | G95: 5 | H95: 4 | I95: 4901.6 | J95: 4368.8 | L95: 109 | M95: 46850.69 | N95: 2025-2026
B96: 85. | C96: г. Златоуст, ул. им. П.П. Аносова, д. 221 | D96: 1960 | F96: кирпичные | G96: 3 | H96: 3 | I96: 1632.6 | J96: 1525.7 | L96: 55 | M96: 20093.57 | N96: 2025-2026
B97: 86. | C97: г. Златоуст, ул. им. П.П. Аносова, д. 247 | D97: 1957 | F97: кирпичные | G97: 5 | H97: 2 | I97: 2605.9 | J97: 1796.6 | L97: 40 | M97: 13996.04 | N97: 2025-2026
B98: 87. | C98: г. Златоуст, ул. им. П.П. Аносова, д. 249 | D98: 1957 | F98: кирпичные | G98: 5 | H98: 3 | I98: 3961.3 | J98: 3633.2 | L98: 104 | M98: 68693.76 | N98: 2025-2026
B99: 88. | C99: г. Златоуст, ул. им. П.П. Аносова, д. 251 | D99: 1958 | F99: кирпичные | G99: 5 | H99: 3 | I99: 3625.6 | J99: 2161.86 | L99: 81 | M99: 21765.89 | N99: 2025-2026
B100: 89. | C100: г. Златоуст, ул. им. Риты Сергеевой, д. 11 | D100: 1957 | F100: кирпичные | G100: 3 | H100: 1 | I100: 526.3 | J100: 526.3 | L100: 24 | M100: 7383.94 | N100: 2025-2026
B101: 90. | C101: г. Златоуст, ул. им. Риты Сергеевой, д. 13 | D101: 1953 | F101: кирпичные | G101: 2 | H101: 1 | I101: 506.6 | J101: 505.8 | L101: 19 | M101: 9107.72 | N101: 2025-2026
B102: 91. | C102: г. Златоуст, ул. им. Риты Сергеевой, д. 15 | D102: 1952 | F102: кирпичные | G102: 2 | H102: 1 | I102: 372.1 | J102: 367.5 | L102: 14 | M102: 9107.72 | N102: 2025-2026
B103: 92. | C103: г. Златоуст, ул. им. Риты Сергеевой, д. 21 | D103: 1952 | F103: кирпичные | G103: 2 | H103: 1 | I103: 517.7 | J103: 516.9 | L103: 18 | M103: 9365 | N103: 2025-2026
B104: 93. | C104: г. Златоуст, ул. им. Риты Сергеевой, д. 3 | D104: 1937 | F104: кирпичные | G104: 4 | H104: 3 | I104: 1682.6 | J104: 1682.6 | L104: 51 | M104: 16723.2 | N104: 2025-2026
B105: 94. | C105: г. Златоуст, ул. им. Риты Сергеевой, д. 9 | D105: 1934 | F105: кирпичные | G105: 4 | H105: 3 | I105: 1672.5 | J105: 1664.8 | L105: 85 | M105: 16723.2 | N105: 2025-2026
B106: 95. | C106: г. Златоуст, ул. Керамическая 1-я, д. 4 | D106: 1955 | F106: кирпичные | G106: 2 | H106: 2 | I106: 746.4 | J106: 669.2 | L106: 42 | M106: 20325.12 | N106: 2025-2026
B107: 96. | C107: г. Златоуст, ул. Косотурская, д. 2 | D107: 1932 | F107: кирпичные | G107: 4 | H107: 5 | I107: 2689.2 | J107: 2078.6 | L107: 93 | M107: 52999.68 | N107: 2025-2026
B108: 97. | C108: г. Златоуст, ул. Машиностроителей, д. 10 | D108: 1959 | F108: смешанные | G108: 2 | H108: 1 | I108: 486.7 | J108: 444.3 | L108: 21 | M108: 12864 | N108: 2025-2026
B109: 98. | C109: г. Златоуст, ул. Машиностроителей, д. 5 | D109: 1960 | F109: блочные | G109: 2 | H109: 1 | I109: 497.1 | J109: 449.9 | L109: 35 | M109: 12864 | N109: 2025-2026
B110: 99. | C110: г. Златоуст, ул. Машиностроителей, д. 6 | D110: 1959 | F110: блочные | G110: 2 | H110: 1 | I110: 481.7 | J110: 442.8 | L110: 18 | M110: 12864 | N110: 2025-2026
B111: 100. | C111: г. Златоуст, ул. Нижне-Заводская 1-я, д. 46 | D111: 1957 | F111: кирпичные | G111: 3 | H111: 2 | I111: 1012 | J111: 988.7 | L111: 50 | M111: 9262.08 | N111: 2025-2026
B112: 101. | C112: г. Златоуст, ул. Тесьминская 2-я, д. 119 | D112: 1958 | F112: кирпичные | G112: 2 | H112: 1 | I112: 406.8 | J112: 406.8 | L112: 18 | M112: 13893.12 | N112: 2025-2026
B113: 102. | C113: г. Златоуст, ул. Тесьминская 2-я, д. 121 | D113: 1958 | F113: кирпичные | G113: 2 | H113: 1 | I113: 444 | J113: 406.5 | L113: 15 | M113: 9776.64 | N113: 2025-2026
B114: 103. | C114: г. Златоуст, ул. Тесьминская 2-я, д. 70 | D114: 1960 | F114: кирпичные | G114: 3 | H114: 3 | I114: 1857 | J114: 1852.6 | L114: 68 | M114: 42451.2 | N114: 2025-2026
B115: 104. | C115: г. Златоуст, ул. Тесьминская 2-я, д. 72 | D115: 1961 | F115: кирпичные | G115: 3 | H115: 3 | I115: 1735.6 | J115: 1734 | L115: 79 | M115: 42451.2 | N115: 2025-2026
B116: 105. | C116: г. Златоуст, ул. Тесьминская 3-я, д. 129 | D116: 1960 | F116: блочные | G116: 3 | H116: 2 | I116: 887.4 | J116: 815.4 | L116: 32 | M116: 26242.56 | N116: 2025-2026
B117: 106. | C117: г. Златоуст, ул. Чугуновская, д. 4 | D117: 1941 | F117: кирпичные | G117: 3 | H117: 2 | I117: 1312.4 | J117: 1213.6 | L117: 41 | M117: 48883.2 | N117: 2025-2026
B118: 107. | C118: г. Златоуст, ш. Кусинское, д. 5А | D118: 1959 | F118: кирпичные | G118: 2 | H118: 2 | I118: 834.5 | J118: 699.7 | L118: 28 | M118: 13687.3 | N118: 2025-2026
B119: Итого по Златоустовскому городскому округу | I119: =SUM(I46:I118) -> 160768.25 | J119: =SUM(J46:J118) -> 142176.48 | L119: =SUM(L46:L118) -> 4837 | M119: =SUM(M46:M118) -> 230842198.3
B120: Карабашский городской округ
B121: 108. | C121: г. Карабаш, ул. 23 годовщины Октября, д. 10 | D121: 1975 | F121: кирпичные | G121: 2 | H121: 2 | I121: 809.1 | J121: 750.9 | L121: 27 | M121: 10805.76 | N121: 2025-2026
B122: 109. | C122: г. Карабаш, ул. 23 годовщины Октября, д. 12 | D122: 1975 | F122: кирпичные | G122: 2 | H122: 3 | I122: 1451 | J122: 924.5 | L122: 30 | M122: 18524.16 | N122: 2025-2026
B123: 110. | C123: г. Карабаш, ул. 23 годовщины Октября, д. 14 | D123: 1975 | F123: кирпичные | G123: 2 | H123: 3 | I123: 926.7 | J123: 926.7 | L123: 26 | M123: 18524.16 | N123: 2025-2026
B124: 111. | C124: г. Карабаш, ул. 23 годовщины Октября, д. 25 | D124: 1962 | F124: кирпичные | G124: 2 | H124: 2 | I124: 627.7 | J124: 624 | L124: 24 | M124: 10805.76 | N124: 2025-2026
B125: 112. | C125: г. Карабаш, ул. 23 годовщины Октября, д. 27 | D125: 1962 | F125: кирпичные | G125: 2 | H125: 2 | I125: 670 | J125: 624.9 | L125: 24 | M125: 10805.76 | N125: 2025-2026
B126: 113. | C126: г. Карабаш, ул. 23 годовщины Октября, д. 4 | D126: 1974 | F126: кирпичные | G126: 2 | H126: 3 | I126: 933.3 | J126: 930.9 | L126: 30 | M126: 18524.16 | N126: 2025-2026
B127: 114. | C127: г. Карабаш, ул. 23 годовщины Октября, д. 5 | D127: 1992 | F127: кирпичные | G127: 4 | H127: 1 | I127: 724.4 | J127: 724.4 | L127: 35 | M127: 10805.76 | N127: 2025-2026
B128: 115. | C128: г. Карабаш, ул. 23 годовщины Октября, д. 8 | D128: 1976 | F128: кирпичные | G128: 2 | H128: 2 | I128: 758.1 | J128: 754.4 | L128: 22 | M128: 10805.76 | N128: 2025-2026
B129: 116. | C129: г. Карабаш, ул. Декабристов, д. 22 | D129: 1974 | F129: кирпичные | G129: 3 | H129: 2 | I129: 1086.6 | J129: 1086.6 | L129: 68 | M129: 33446.4 | N129: 2025-2026
B130: 117. | C130: г. Карабаш, ул. Декабристов, д. 25 | D130: 1956 | F130: кирпичные | G130: 2 | H130: 1 | I130: 383.3 | J130: 383.3 | L130: 10 | M130: 1101793.19 | N130: 2025-2026
B131: 118. | C131: г. Карабаш, ул. Комарова, д. 1 | D131: 1973 | F131: кирпичные | G131: 2 | H131: 2 | I131: 878.2 | J131: 878.2 | L131: 24 | M131: 10291.2 | N131: 2025-2026
B132: 119. | C132: г. Карабаш, ул. Комарова, д. 2 | D132: 1972 | F132: кирпичные | G132: 2 | H132: 2 | I132: 740.3 | J132: 739.2 | L132: 31 | M132: 10805.76 | N132: 2025-2026
B133: 120. | C133: г. Карабаш, ул. Комарова, д. 3 | D133: 1969 | F133: кирпичные | G133: 2 | H133: 2 | I133: 731.3 | J133: 731.3 | L133: 17 | M133: 10805.76 | N133: 2025-2026
B134: 121. | C134: г. Карабаш, ул. Комарова, д. 4 | D134: 1971 | F134: кирпичные | G134: 2 | H134: 2 | I134: 741.3 | J134: 740.7 | L134: 31 | M134: 10805.76 | N134: 2025-2026
B135: 122. | C135: г. Карабаш, ул. Комарова, д. 7 | D135: 1967 | F135: кирпичные | G135: 2 | H135: 2 | I135: 723.2 | J135: 723.2 | L135: 21 | M135: 10805.76 | N135: 2025-2026
B136: 123. | C136: г. Карабаш, ул. Комсомольская, д. 11 | D136: 1974 | F136: кирпичные | G136: 2 | H136: 2 | I136: 824.4 | J136: 762.8 | L136: 23 | M136: 10805.76 | N136: 2025-2026
B137: 124. | C137: г. Карабаш, ул. Комсомольская, д. 16 | D137: 1963 | F137: кирпичные | G137: 2 | H137: 2 | I137: 619.5 | J137: 612 | L137: 24 | M137: 10805.76 | N137: 2025-2026
B138: 125. | C138: г. Карабаш, ул. Комсомольская, д. 19 | D138: 1970 | F138: кирпичные | G138: 2 | H138: 2 | I138: 727.8 | J138: 727.8 | L138: 18 | M138: 10805.76 | N138: 2025-2026
B139: 126. | C139: г. Карабаш, ул. Комсомольская, д. 21 | D139: 1970 | F139: кирпичные | G139: 2 | H139: 2 | I139: 727.4 | J139: 727.4 | L139: 27 | M139: 10805.76 | N139: 2025-2026
B140: 127. | C140: г. Карабаш, ул. Комсомольская, д. 22 | D140: 1966 | F140: кирпичные | G140: 2 | H140: 2 | I140: 662.2 | J140: 662.2 | L140: 25 | M140: 10805.76 | N140: 2025-2026
B141: 128. | C141: г. Карабаш, ул. Комсомольская, д. 22, корп. А | D141: 1983 | F141: кирпичные | G141: 5 | H141: 4 | I141: 2908.1 | J141: 2908.1 | L141: 101 | M141: 144076.8 | N141: 2025-2026
B142: 129. | C142: г. Карабаш, ул. Комсомольская, д. 23 | D142: 1986 | F142: панельные | G142: 5 | H142: 4 | I142: 3258 | J142: 3214.45 | L142: 125 | M142: 72038.4 | N142: 2025-2026
B143: 130. | C143: г. Карабаш, ул. Комсомольская, д. 24 | D143: 1981 | F143: кирпичные | G143: 5 | H143: 4 | I143: 2994 | J143: 2980.22 | L143: 98 | M143: 66892.8 | N143: 2025-2026
B144: 131. | C144: г. Карабаш, ул. Комсомольская, д. 25 | D144: 1989 | F144: панельные | G144: 5 | H144: 4 | I144: 4458.6 | J144: 4458.6 | L144: 111 | M144: 72038.4 | N144: 2025-2026
B145: 132. | C145: г. Карабаш, ул. Комсомольская, д. 29 | D145: 1991 | F145: панельные | G145: 5 | H145: 6 | I145: 4889.9 | J145: 4889.9 | L145: 181 | M145: 108057.6 | N145: 2025-2026
B146: 133. | C146: г. Карабаш, ул. Комсомольская, д. 7 | D146: 1974 | F146: кирпичные | G146: 2 | H146: 2 | I146: 811.5 | J146: 748.1 | L146: 20 | M146: 10805.76 | N146: 2025-2026
B147: 134. | C147: г. Карабаш, ул. Ленина, д. 22 | D147: 1987 | F147: кирпичные | G147: 2 | H147: 3 | I147: 857.1 | J147: 857.1 | L147: 25 | M147: 18524.16 | N147: 2025-2026
B148: 135. | C148: г. Карабаш, ул. Металлургов, д. 11/1 | D148: 1978 | F148: панельные | G148: 5 | H148: 6 | I148: 5335.9 | J148: 4880 | L148: 137 | M148: 216115.2 | N148: 2025-2026
B149: 136. | C149: г. Карабаш, ул. Металлургов, д. 11/4 | D149: 1979 | F149: панельные | G149: 5 | H149: 4 | I149: 3227.97 | J149: 3227.97 | L149: 117 | M149: 72038.4 | N149: 2025-2026
B150: 137. | C150: г. Карабаш, ул. Металлургов, д. 13/2 | D150: 1982 | F150: панельные | G150: 5 | H150: 4 | I150: 3627.5 | J150: 3285.31 | L150: 104 | M150: 72038.4 | N150: 2025-2026
B151: 138. | C151: г. Карабаш, ул. Металлургов, д. 15/1 | D151: 1985 | F151: панельные | G151: 5 | H151: 6 | I151: 6013.3 | J151: 6011.8 | L151: 149 | M151: 108057.6 | N151: 2025-2026
B152: 139. | C152: г. Карабаш, ул. Металлургов, д. 15/2 | D152: 1982 | F152: панельные | G152: 5 | H152: 4 | I152: 3219.3 | J152: 3219.3 | L152: 118 | M152: 72038.4 | N152: 2025-2026
B153: 140. | C153: г. Карабаш, ул. Металлургов, д. 17/2 | D153: 1987 | F153: панельные | G153: 5 | H153: 8 | I153: 6539 | J153: 6487.6 | L153: 254 | M153: 144076.8 | N153: 2025-2026
B154: 141. | C154: г. Карабаш, ул. Металлургов, д. 17/3 | D154: 1988 | F154: панельные | G154: 5 | H154: 8 | I154: 6465.4 | J154: 6445.3 | L154: 115 | M154: 144076.8 | N154: 2025-2026
B155: 142. | C155: г. Карабаш, ул. Металлургов, д. 17/4 | D155: 1989 | F155: панельные | G155: 5 | H155: 8 | I155: 6451.3 | J155: 6380.3 | L155: 207 | M155: 144076.8 | N155: 2025-2026
B156: 143. | C156: г. Карабаш, ул. Металлургов, д. 17/5 | D156: 1990 | F156: панельные | G156: 5 | H156: 8 | I156: 6471.9 | J156: 6468.4 | L156: 234 | M156: 288153.6 | N156: 2025-2026
B157: 144. | C157: г. Карабаш, ул. Металлургов, д. 19 | D157: 1993 | F157: панельные | G157: 5 | H157: 4 | I157: 3186.97 | J157: 3186.97 | L157: 121 | M157: 72038.4 | N157: 2025-2026
B158: 145. | C158: г. Карабаш, ул. Островского, д. 2, корп. А | D158: 1982 | F158: кирпичные | G158: 2 | H158: 3 | I158: 1426 | J158: 858.7 | L158: 32 | M158: 18524.16 | N158: 2025-2026
B159: 146. | C159: г. Карабаш, ул. Подлесная, д. 8 | D159: 1976 | F159: панельные | G159: 5 | H159: 6 | I159: 4845.2 | J159: 4845.2 | L159: 137 | M159: 108057.6 | N159: 2025-2026
B160: 147. | C160: г. Карабаш, ул. Соломатина, д. 26 | D160: 1975 | F160: кирпичные | G160: 2 | H160: 2 | I160: 759.9 | J160: 759.9 | L160: 20 | M160: 10805.76 | N160: 2025-2026
B161: 148. | C161: г. Карабаш, ул. Соломатина, д. 28 | D161: 1976 | F161: кирпичные | G161: 2 | H161: 2 | I161: 756.3 | J161: 742.8 | L161: 22 | M161: 10805.76 | N161: 2025-2026
B162: 149. | C162: г. Карабаш, ул. Соломатина, д. 30 | D162: 1977 | F162: кирпичные | G162: 2 | H162: 2 | I162: 756 | J162: 753.1 | L162: 14 | M162: 10805.76 | N162: 2025-2026
B163: Итого по Карабашскому городскому округу | I163: =SUM(I121:I162) -> 95004.94 | J163: =SUM(J121:J162) -> 92644.52 | L163: =SUM(L121:L162) -> 2979 | M163: =SUM(M121:M162) -> 3336527.27
B164: Копейский городской округ
B165: 150. | C165: г. Копейск, п. Советов, д. 14 | D165: 1939 | F165: кирпичные | G165: 4 | H165: 3 | I165: 2111.8 | J165: 1619.8 | L165: 80 | M165: 11577.6 | N165: 2025-2026
B166: 151. | C166: г. Копейск, п. Советов, д. 3 | D166: 1950 | F166: шлакоблочные | G166: 2 | H166: 3 | I166: 1056.4 | J166: 813.89 | L166: 50 | M166: 27271.68 | N166: 2025-2026
B167: 152. | C167: г. Копейск, п. Советов, д. 5 | D167: 1949 | F167: шлакоблочные | G167: 2 | H167: 3 | I167: 961.8 | J167: 891.25 | L167: 52 | M167: 24698.88 | N167: 2025-2026
B168: 153. | C168: г. Копейск, пер. Юннатов, д. 4 | D168: 1953 | F168: шлакоблочные | G168: 2 | H168: 2 | I168: 807.6 | J168: 559.2 | L168: 33 | M168: 20222.21 | N168: 2025-2026
B169: 154. | C169: г. Копейск, пер. Юннатов, д. 6 | D169: 1954 | F169: шлакоблочные | G169: 2 | H169: 2 | I169: 445.2 | J169: 387.8 | L169: 21 | M169: 511433.06 | N169: 2025-2026
B170: 155. | C170: г. Копейск, пр-кт Победы, д. 44 | D170: 1952 | F170: шлакоблочные | G170: 2 | H170: 2 | I170: 701 | J170: 600.44 | L170: 38 | M170: 3859.2 | N170: 2025-2026
B171: 156. | C171: г. Копейск, ул. 19 Партсъезда, д. 34 | D171: 1954 | F171: шлакоблочные | G171: 2 | H171: 2 | I171: 580.7 | J171: 536.82 | L171: 21 | M171: 284698.42 | N171: 2025-2026
B172: 157. | C172: г. Копейск, ул. 19 Партсъезда, д. 38 | D172: 1954 | F172: кирпичные | G172: 2 | H172: 3 | I172: 983.3 | J172: 584.68 | L172: 41 | M172: 3087.36 | N172: 2025-2026
B173: 158. | C173: г. Копейск, ул. 19 Партсъезда, д. 42 | D173: 1954 | F173: кирпичные | G173: 2 | H173: 3 | I173: 984.2 | J173: 786.52 | L173: 40 | M173: 3087.36 | N173: 2025-2026
B174: 159. | C174: г. Копейск, ул. 22 Партсъезда, д. 2А | D174: 1950 | F174: кирпичные | G174: 2 | H174: 2 | I174: 786.9 | J174: 681.4 | L174: 27 | M174: 5145.6 | N174: 2025-2026
B175: 160. | C175: г. Копейск, ул. 22 Партсъезда, д. 5 | D175: 1955 | F175: кирпичные | G175: 2 | H175: 2 | I175: 895.4 | J175: 481.4 | L175: 26 | M175: 9262.08 | N175: 2025-2026
B176: 161. | C176: г. Копейск, ул. 22 Партсъезда, д. 6 | D176: 1955 | F176: кирпичные | G176: 2 | H176: 2 | I176: 906.6 | J176: 497 | L176: 24 | M176: 5145.6 | N176: 2025-2026
B177: 162. | C177: г. Копейск, ул. Белорусская, д. 9 | D177: 1954 | F177: кирпичные | G177: 2 | H177: 2 | I177: 650.8 | J177: 589.6 | L177: 22 | M177: 3087.36 | N177: 2025-2026
B178: 163. | C178: г. Копейск, ул. Борьбы, д. 27 | D178: 1951 | F178: шлакоблочные | G178: 2 | H178: 1 | I178: 538.3 | J178: 440.7 | L178: 19 | M178: 6174.72 | N178: 2025-2026
B179: 164. | C179: г. Копейск, ул. Борьбы, д. 29 | D179: 1951 | F179: шлакоблочные | G179: 2 | H179: 2 | I179: 920.9 | J179: 692.8 | L179: 32 | M179: 6174.72 | N179: 2025-2026
B180: 165. | C180: г. Копейск, ул. Борьбы, д. 33 | D180: 1951 | F180: шлакоблочные | G180: 2 | H180: 2 | I180: 991.2 | J180: 695.62 | L180: 25 | M180: 3087.36 | N180: 2025-2026
B181: 166. | C181: г. Копейск, ул. Борьбы, д. 37 | D181: 1951 | F181: шлакоблочные | G181: 3 | H181: 3 | I181: 2378.7 | J181: 2163.5 | L181: 45 | M181: 9262.08 | N181: 2025-2026
B182: 167. | C182: г. Копейск, ул. Братьев Гожевых, д. 1 | D182: 1955 | F182: кирпичные | G182: 2 | H182: 2 | I182: 827.6 | J182: 643.1 | L182: 29 | M182: 6174.72 | N182: 2025-2026
B183: 168. | C183: г. Копейск, ул. Братьев Гожевых, д. 3 | D183: 1955 | F183: шлакоблочные | G183: 2 | H183: 2 | I183: 886.4 | J183: 870.3 | L183: 16 | M183: 6174.72 | N183: 2025-2026
B184: 169. | C184: г. Копейск, ул. Братьев Гожевых, д. 6 | D184: 1955 | F184: деревянные | G184: 2 | H184: 2 | I184: 239.5 | J184: 239.3 | L184: 12 | M184: 3087.36 | N184: 2025-2026
B185: 170. | C185: г. Копейск, ул. Гастелло, д. 6 | D185: 1953 | F185: шлакоблочные | G185: 2 | H185: 2 | I185: 426.1 | J185: 382.4 | L185: 25 | M185: 11320.32 | N185: 2025-2026
B186: 171. | C186: г. Копейск, ул. Гастелло, д. 7 | D186: 1953 | F186: шлакоблочные | G186: 2 | H186: 2 | I186: 449.6 | J186: 404.4 | L186: 22 | M186: 6689.28 | N186: 2025-2026
B187: 172. | C187: г. Копейск, ул. Грибоедова, д. 20 | D187: 1940 | F187: кирпичные | G187: 2 | H187: 2 | I187: 697.1 | J187: 505.9 | L187: 29 | M187: 13893.12 | N187: 2025-2026
B188: 173. | C188: г. Копейск, ул. Грибоедова, д. 22 | D188: 1950 | F188: деревянные | G188: 1 | H188: 4 | I188: 294.3 | J188: 294.3 | L188: 10 | M188: 9262.08 | N188: 2025-2026
B189: 174. | C189: г. Копейск, ул. Елькина, д. 4 | D189: 1950 | F189: деревянные | G189: 2 | H189: 1 | I189: 524.6 | J189: 477.2 | L189: 23 | M189: 3087.36 | N189: 2025-2026
B190: 175. | C190: г. Копейск, ул. Жигулевская, д. 1 | D190: 1936 | F190: кирпичные | G190: 2 | H190: 1 | I190: 629.9 | J190: 629.9 | L190: 24 | M190: 159342.76 | N190: 2025-2026
B191: 176. | C191: г. Копейск, ул. Зеленая, д. 8А | D191: 1950 | F191: кирпичные | G191: 2 | H191: 2 | I191: 713.6 | J191: 704 | L191: 38 | M191: 4631.04 | N191: 2025-2026
B192: 177. | C192: г. Копейск, ул. Калинина, д. 8 | D192: 1952 | F192: шлакоблочные | G192: 2 | H192: 2 | I192: 840.9 | J192: 785.4 | L192: 27 | M192: 6432 | N192: 2025-2026
B193: 178. | C193: г. Копейск, ул. Карла Маркса, д. 2 | D193: 1952 | F193: шлакоблочные | G193: 2 | H193: 2 | I193: 422.9 | J193: 378.9 | L193: 21 | M193: 8232.96 | N193: 2025-2026
B194: 179. | C194: г. Копейск, ул. Карла Маркса, д. 8 | D194: 1952 | F194: шлакоблочные | G194: 2 | H194: 2 | I194: 413.7 | J194: 370.3 | L194: 21 | M194: 7203.84 | N194: 2025-2026
B195: 180. | C195: г. Копейск, ул. Кирова, д. 11 | D195: 1946 | F195: кирпичные | G195: 2 | H195: 2 | I195: 666.5 | J195: 591.6 | L195: 27 | M195: 5660.16 | N195: 2025-2026
B196: 181. | C196: г. Копейск, ул. Кирова, д. 15 | D196: 1952 | F196: шлакоблочные | G196: 2 | H196: 2 | I196: 997.5 | J196: 835.5 | L196: 30 | M196: 5660.16 | N196: 2025-2026
B197: 182. | C197: г. Копейск, ул. Кирова, д. 17 | D197: 1952 | F197: шлакоблочные | G197: 2 | H197: 2 | I197: 830 | J197: 780.2 | L197: 41 | M197: 6689.28 | N197: 2025-2026
B198: 183. | C198: г. Копейск, ул. Кирова, д. 22 | D198: 1953 | F198: деревянные | G198: 2 | H198: 3 | I198: 1483 | J198: 1420.8 | L198: 48 | M198: 6432 | N198: 2025-2026
B199: 184. | C199: г. Копейск, ул. Кирова, д. 24 | D199: 1953 | F199: шлакоблочные | G199: 2 | H199: 2 | I199: 984.9 | J199: 846.5 | L199: 26 | M199: 6689.28 | N199: 2025-2026
B200: 185. | C200: г. Копейск, ул. Кирова, д. 31 | D200: 1941 | F200: кирпичные | G200: 2 | H200: 3 | I200: 778.7 | J200: 663 | L200: 27 | M200: 9262.08 | N200: 2025-2026
B201: 186. | C201: г. Копейск, ул. Кирова, д. 37 | D201: 1941 | F201: кирпичные | G201: 2 | H201: 2 | I201: 705.9 | J201: 705.9 | L201: 24 | M201: 6432 | N201: 2025-2026
B202: 187. | C202: г. Копейск, ул. Кирова, д. 39 | D202: 1941 | F202: кирпичные | G202: 2 | H202: 3 | I202: 793.4 | J202: 697.5 | L202: 25 | M202: 7203.84 | N202: 2025-2026
... 1824 more rows

Sheet Лист5
